{"text_format":"1","workbook":"xlsx","n_sheets":11,"sheets":["Invulinstructie","Totaalblad","Overzicht gemeenten","Versiebeheer","begin","Gemeente x","Gouda","einde","Categorie","Productcodes","Import Productcodes"],"not_rendered":{"charts":0,"images":1,"macros":1,"external_links":3,"defined_names":19,"comments":0,"pivot_tables":0},"unopened":[],"bounds":{"document_bytes":16777216,"sheet_cells":100000,"rows_first":2000,"rows_last":500,"rows_between":2000,"halvings":0,"cell_chars":16384,"cell_head_chars":4096},"cells_cut":0,"cells_raw":0,"read":"whole","date_system":"1900"}

{"sheet":"Invulinstructie","index":0,"n_rows":27,"n_cols":2,"rows_kept":27,"cut":false,"hidden":false,"merged":[]}
[null,"Invulinstructie Financiële productieverantwoording WMO"]
[]
[null,"WMO INVULINSTRUCTIE "]
[]
[null,"Algemeen"]
[null,"Dit formulier is bedoeld voor de financiële verantwoording van zorgaanbieders uit hoofde van de Wmo. De financiële productieverantwoording bevat de definitieve opgave van de gerealiseerde productie 2019 en is onlosmakelijk verbonden aan het “Algemeen accountantsprotocol financiële productieverantwoording WMO en Jeugdwet 2018”. Zie verder het “Algemeen accountantsprotocol financiële productieverantwoording WMO en Jeugdwet 2018”  (http://i-sociaaldomein.nl/). Opmerking: het accountantsprotocol voor 2019 is ongewijzigd ten opzichte van 2018.\n\nVoor zover in dit formulier wordt gesproken over ‘zorgaanbieder’ wordt hiermee bedoeld: alle onderdelen van een beherend rechtspersoon die samen opgenomen zijn in het gesloten contract met betreffende gemeente(n). Voor de definitie van 'gemeente' zie de definitielijst van het “Algemeen accountantsprotocol 2018 financiële productieverantwoording Wmo en Jeugdwet”.\n\nEen boekjaar wordt gelijk gesteld aan het kalenderjaar. Wanneer sprake is van zorgtrajecten die niet per einde van het boekjaar kunnen worden afgesloten, geldt dat de financiële productieverantwoording tevens de financiële waarde van fictief afgesloten zorgtrajecten omvat die per 31 december 2019 onderhanden zijn. In de verantwoording van deze zorgtrajecten neemt u als productie mee de reeds in 2019 geleverde, maar nog niet afgesloten, ondersteuning en/of zorg. Dit doet u door bij ‘aantal’ het aantal gerealiseerde zorgtrajecten in te vullen, inclusief de som van de naar rato verleende zorg in nog niet afgesloten zorgtrajecten. Heeft u bijvoorbeeld 10 zorgtrajecten volledig afgerond en 9 half, dan verantwoordt u 14,5 trajecten. \n\nHet formulier moet van voor naar achteren en van boven naar beneden worden ingevuld. Alle door u in te vullen velden zijn ‘blauw gearceerd’. Witte cellen geven uitkomsten van berekeningen weer. \n\nU dient de tabbladen “Totaalblad”, “Overzicht Gemeenten” en de Gemeente-tabbladen op te slaan als PDF om ze te kunnen tekenen en/of te waarmerken. Het is afhankelijk per gemeente of het document moet worden aangeleverd. Hieronder wordt, indien van toepassing, per tabblad een toelichting gegeven.  "]
[null,"Tabblad ‘Totaalblad’"]
[null,"Het tabblad ‘Totaalblad’ geeft de totaal gerealiseerde productie uit hoofde van de Wmo weer, waarvan gemeenten een accountantscontrole voorschrijven. Als de coulance regeling van toepassing is verklaard voor een zorgaanbieder, hoeft de accountant de verantwoording niet te ondertekenen. De naam en datum die ingevuld worden op het tabblad “Totaal Overzicht”, worden overgenomen op de tabbladen “Overzicht Gemeenten” en de tabbladen van de aangemaakte gemeentes.\n"]
[null,"Tabblad ‘Overzicht gemeenten’"]
[null,"In dit tabblad geeft u aan voor welke gemeente(n) u uw geleverde productie uit hoofde van de Wmo wilt verantwoorden. Heeft u met een gemeente ook afspraken binnen het domein Jeugdwet, dan gebruikt u daarvoor het verantwoordingsformat Jeugdwet. In de financiële productieverantwoording op totaalniveau per domein wordt alleen de productie Wmo verwerkt die betrekking heeft op de gemeenten die een accountantscontrole voorschrijven. De accountant waarmerkt dit overzicht en verwijst er naar in zijn controleverklaring (onderdeel “Overige aspecten – beperking in gebruik en verspreidingskring”). \n"]
[null,"Voor het aanmaken van de verantwoordingen per gemeente, vult u in het bovenste blok op regelniveau de gemeente(n) in waar u verantwoording over af wilt leggen. Vervolgens klikt u op de button ‘Aanmaken verantwoordingen gemeenten’. Het systeem maakt dan automatisch de tabbladen (voorzien van de naam van de gemeente) aan. Indien u meer regels nodig heeft, klikt u op ‘toevoegen’. Het systeem voegt een nieuwe regel toe onder de regel waar u staat met uw cursor. Dit maakt het mogelijk om ook tussen de reeds ingevoerde regels, nieuwe regels te plaatsen. Nadat u vervolgens de namen van de gemeente(n) heeft ingevuld, klikt u opnieuw op de button ‘Aanmaken verantwoordingen’. Het systeem voegt de nieuwe tabbladen voorzien van de naam van de gemeente toe. Heeft u per ongeluk een verkeerde gemeente opgenomen, dan kunt u deze verwijderen. Ga hiervoor op de betreffende regel staan en klik op de button ‘verwijderen’. Klik vervolgens opnieuw op de button ‘Aanmaken verantwoordingen gemeenten’ om ook het bijbehorende tabblad te verwijderen.\n"]
[null,"Na het aanmaken van de tabbladen is het niet gewenst om de volgorde van de tabbladen te wijzigen. Indien u toch wijzigingen aanbrengt, kunnen er fouten optreden in de automatische tellingen.\n\nOp basis van de ingevulde financiële productieverantwoordingen per gemeente berekent het model in het tabblad ‘Totaalblad’ de totale gerealiseerde productie binnen het domein Wmo. \n\nDoor ondertekening van het formulier ‘Financiële productieverantwoording 2019’ verklaart de bestuurder van de zorgaanbieder dat de financiële productieverantwoording 2019 naar waarheid en in overeenstemming met de vigerende wet- en regelgeving is verantwoord. Zie hiervoor paragraaf 3.5 Normen- en toetsingskader, “Algemeen accountantsprotocol financiële productieverantwoording WMO en Jeugdwet 2018”."]
[null,"Tabblad ‘Versiebeheer’"]
[null,"Als het formulier na publicatie nog is aangepast en er dus een nieuwe versie beschikbaar is, dan kunt u in het tabblad Versiebeheer zien welke mutaties er zijn doorgevoerd ten opzichte van het eerder gepubliceerde formulier. "]
[null," \nNa het aanmaken van de tabbladen is het niet gewenst om de volgorde van de tabbladen te wijzigen. Indien u toch wijzigingen aanbrengt, kunnen er fouten optreden in de automatische tellingen.\n\nOp basis van de ingevulde financiële productieverantwoordingen per gemeente berekent het model in het tabblad ‘Totaalblad’ de totale gerealiseerde productie binnen het domein Jeugdwet. \n\nDoor ondertekening van het formulier ‘Financiële productieverantwoording 2018’ verklaart de bestuurder van de zorgaanbieder dat de financiële productieverantwoording 2018 naar waarheid en in overeenstemming met de vigerende wet- en regelgeving is verantwoord. Zie hiervoor paragraaf 3.5 Normen- en toetsingskader, “Algemeen accountantsprotocol financiële productieverantwoording WMO en Jeugdwet 2018”."]
[null,"Tabblad ‘Gemeente’ "]
[null,"Overeenkomstig het aantal ingevulde ‘gemeenten’  worden standaard tabbladen aangemaakt. Per gemeente legt u achtereenvolgens verantwoording af over de gerealiseerde productie 2019 binnen het domein WMO. \n\nBinnen het formulier is zoveel mogelijk rekening gehouden met de variëteit in de wijze van het maken van inkoopafspraken, gehanteerde productcategoriën (iWMO2.3) en bekostigingsvormen door de gemeenten voor 2018. Vanaf 2018 is het mogelijk om productcategorieën de u niet gebruikt, te verbergen. Maak hiervoor gebruik van de button ‘Productcategorieën zichtbaar maken of verbergen’. U kunt ingeven welke productcategorieën u wilt verbergen. Het is niet mogelijk om een productiecategorie te verbergen, waarin u reeds productie heeft verantwoord. U krijgt dan een melding. Heeft u een categorie verborgen en wilt u alsnog productie daarin verantwoorden, dan kunt u de categorie weer terughalen via dezelfde button ‘Productcategorieën zichtbaar maken of verbergen’. \nOok kan het voorkomen dat een deel van de velden binnen een productcategorie voor u niet relevant is of dat u juist extra velden nodig heeft. Extra velden kunnen worden toegevoegd via de button 'toevoegen'.  Een teveel aan rijen kan worden verminderd via een klik op de button 'verwijderen'. Voor de consistentie van het formulier, verzoeken wij u, met uitzondering van de daarvoor bestemde buttons, geen cellen/ rijen/ kolommen te verwijderen. "]
[null,"Indien het overeengekomen contract voorzien is van een inkoopordernummer dan kunt u dit nummer per financieringsstroom invullen.\n\n- In de eerste kolom worden de automatisch aangemaakte regelnummers weergegeven;\n- In de tweede kolom, onder de naam van de Productcategorie (bijvoorbeeld Hulp bij het huishouden) vult u de omschrijving van het product in;\n- In de kolom 'Code' vult u, indien aanwezig, de bijbehorende productcode in;\n- In de kolom Eenheid geeft u aan op basis van welke grootheid de gerealiseerde productieaantallen verantwoord worden. Dit kan zijn minuut, uur, etmaal (24 uur), dagdeel (4 uur), week, euro of stuks, etc.;\n- In de kolom 'Aantal' vult u het gerealiseerde aantal in, de Q; \n- In de kolom 'Prijs' vult u het overeengekomen tarief in, de P; \n- In de kolom 'Realisatie' berekent het formulier de gerealiseerde productie middels P*Q; \n- De laatste regel van een blok geeft de totaal gerealiseerde productie per Productcategorie weer. \n"]
[null,"In het onderdeel 19 vermeldt u producten of arrangementen die niet gefinancierd zijn op basis van een input- of outputfinanciering (P*Q).  Hierbij kunt u denken aan financieringsvormen als taakgerichte productieafspraken, subsidiabele kosten, lumpsumbekostiging of overige specifieke financieringsvormen. Verder biedt dit onderdeel tevens de mogelijkheid om correcties weer te geven. Hierbij kunt u bijvoorbeeld denken aan correcties uit voorgaande jaren n.a.v. een accountantscontrole. De regel correcties is niet bedoeld om gerealiseerde overproductie of doelmatigheidscorrecties weer te geven.\n\nIn onderdeel 20 verantwoordt u de productie die u heeft geleverd op basis van afspraken vanuit de Landelijke inkoopafspraken specialistische begeleiding ZG. Dit geldt voor een select aantal instellingen. De producten die hiervoor van toepassing zijn, zijn opgenomen in de productcodelijst, ‘geel gearceerd’ en tevens herkenbaar aan de productcodes waarin de letter ‘L’ is verwerkt. \n\nIndien u gebruik maakt van de Toelichtingsblokken, verzoeken wij u, indien mogelijk, te verwijzen naar het betreffende regelnummer. "]
[null,"Tabblad ‘Productcodes’"]
[null,"Hanteert de gemeente waar u zorg levert de landelijke standaardproductcodes conform iWmo 2.3, dan kunt u gebruik maken van het tabblad Productcodes. Hierin is de Standaardproductcodelijst opgenomen conform de landelijke I-standaarden (https://www.istandaarden.nl/istandaarden/iwmo/werken-met-iwmo-23/tabellen). Door de beveiliging van de werkbladen is het niet mogelijk om de standaardproductcodes te knippen en te plakken. Om de omschrijvingen en codes te verwerken in het verantwoordingsformat typt u in het gewenste veld in het tabblad van de gemeente waarover u verantwoordt \"=\",  vervolgens gaat u naar het tabblad \"Productcodes\", kiest u het gewenste/geleverde product en druk op ‘Enter’. "]
[null,"Tabblad ‘Import Productcodes’ "]
[null,"Voor de gevorderden Excel gebruikers is de mogelijkheid toegevoegd om een eigen tarievenlijst in te voeren om zo door middel van formules de productprijzen \"op te halen\" op de verantwoordingsformulieren per gemeente. Dit doet u als volgt:\nStap 1: maak een lijst van alle producten per gemeente inclusief code en prijs en kopieer deze naar dit tabblad. Let erop dat iedere combinatie van product en gemeente slechts 1x voorkomt op de lijst.\nStap 2: maak de verantwoordingsformulieren aan per gemeente (zie ook de toelichting op Tabblad ‘Overzicht gemeenten’)\nStap 3: op het tabblad Gemeente voert u geen bedrag in voor de \"Prijs in €\", maar maakt u gebruik van de functie SOMMEN.ALS. \nStap 4: in cel J22 is een voorbeeld formule te vinden\n\nVoorbeeld van uitvoering:\n1. Selecteer cel J22\n2. voer in: =SOMMEN.ALS(\n3. Kies het optelbereik; dat is kolom D op het tabblad Import Productcodes\n4. Kies het eerste criteriumbereik; dat is kolom B op het tabblad Import Productcodes (\"code\")\n5. Geef het eerste criterium op; verwijs naar cel G22 waar u de productcode heeft opgegeven\n6. Kies het tweede criteriumbereik; dat is kolom C op het tabblad Import Productcodes (\"gemeente\")\n7. Geef het tweede criterium op; verwijs naar cel D9 waar de gemeente naam is opgegeven toen u het formulier aanmaakte. Dit is een beveiligde cel, dus de verwijzing moet u handmatig invoeren.\n8. De formule (inclusief de juiste $$ posities) is nu: =SOMMEN.ALS('Import Productcodes'!$D:$D;'Import Productcodes'!$B:$B;G22;'Import Productcodes'!$C:$C;$D$9). Deze formule kunt u kopieren naar andere rijen en tabbladen."]
[null,"Tips:\n1. Indien of de productcode of de gemeentenaam niet exact overeenkomt met de productcode/gemeentenaam op het formulier, \ndan zal de prijs € 0,- zijn.\n2. Indien een combinatie van productcode en gemeentenaam tweemaal voorkomt in de tarievenlijst op tabblad Import Productcodes, dan worden de prijzen bij elkaar opgeteld. U kunt de formule voorwaardelijk maken door ALS en AANTALLEN.ALS toe te voegen en een gecombineerde formule te maken, waarbij er geen prijs wordt weergegeven als de uitkomst van AANTALLEN.ALS niet gelijk is aan 1 (en dus vaker dan 1x of geen enkele keer voorkomt in de lijst). De functie wordt dan: \n=ALS(AANTALLEN.ALS('Import Productcodes'!$D:$D;'Import Productcodes'!$B:$B;G22;'Import Productcodes'!$C:$C;$D$9)<>1;0;\nSOMMEN.ALS('Import Productcodes'!$D:$D;'Import Productcodes'!$B:$B;G22;'Import Productcodes'!$C:$C;$D$9))\n"]
[]
[null,"Disclaimer"]
[null,"Deze uitgave is met grote zorgvuldigheid en met gebruikmaking van de meest actuele gegevens tot stand gekomen. Het is evenwel niet geheel uitgesloten dat de informatie in deze uitgave onjuistheden en/of onvolkomenheden bevat. AAG aanvaardt geen aansprakelijkheid voor directe of indirecte schade ontstaan door eventuele onjuistheden en/of onvolkomenheden. Aan de inhoud van deze uitgave kunnen geen rechten worden ontleend."]

{"sheet":"Totaalblad","index":1,"n_rows":48,"n_cols":14,"rows_kept":48,"cut":false,"hidden":false,"merged":[[40,3,40,8],[6,1,6,2],[5,1,5,2],[31,10,40,14],[30,10,30,14],[8,4,8,8],[25,1,26,14],[20,5,20,7],[28,1,28,16],[11,1,11,2],[27,1,27,4],[23,1,23,10],[22,1,22,10],[20,1,20,2],[9,1,9,2],[21,5,21,7],[31,3,31,8],[19,5,19,7],[20,3,20,4],[11,3,11,8],[32,1,39,8],[0,11,0,12],[0,9,0,10],[4,10,4,14],[5,13,5,14],[5,3,5,8],[10,1,10,2],[7,3,7,8],[6,3,6,8],[10,3,10,8],[9,3,9,8],[7,1,7,2],[8,1,8,2]]}
[null,"Financiële productieverantwoording Wmo op totaalniveau",null,null,null,null,null,null,null,2019]
[]
[null,"Zorgaanbieder "]
[]
[null,"Zorgaanbieder",null,null,null,null,null,null,null,null,"Versiebeheer"]
[null,"Naam",null,null,null,null,null,null,null,null,"Versiedatum",null,null,"2019-10-16"]
[null,"Plaats"]
[null,"KvK-nummer"]
[null,"Contactpersoon"]
[null,"Telefoon"]
[null,"E-mail"]
[null,"AGB-code"]
[]
[]
[]
[]
[]
[]
[]
[null,"Financieringsstroom",null,null,null,"Gerealiseerde productie 2019"]
[null,"Wmo",null,null,null,{"$f":"SUM(begin:einde!R1)","v":540}]
[null,"TOTAAL gerealiseerde productie ",null,null,null,{"$f":"F21","v":540}]
[]
[]
[null,"Door ondertekening van het formulier 'Financiële productieverantwoording 2019':"]
[null,"Verklaart de bestuurder van de zorgaanbieder dat de financiële productieverantwoording Wmo 2019 naar waarheid en in overeenstemming met het normenkader (zie paragraaf 3.5 Normen- en toetsingskader, Algemeen Accountantsprotocol 2018) Financiële productieverantwoording Wmo en Jeugdwet) is verantwoord. Opmerking: het accountantsprotocol voor 2018 is ook geldig voor 2019."]
[]
[]
[]
[]
[null,"Zorgaanbieder",null,null,null,null,null,null,null,null,"Waarmerking Accountant voor identificatiedoeleinden:"]
[null,"Naam ondertekenaar:",null,null,null,null,null,null,null,null,"behorend bij verklaring afgegeven d.d.:"]
[null,"Handtekening:"]
[]
[]
[]
[]
[]
[]
[]
[null,"Datum:"]
[]
[]
[]
[]
[]
[]
[null,"  "]

{"sheet":"Overzicht gemeenten","index":2,"n_rows":46,"n_cols":14,"rows_kept":46,"cut":false,"hidden":false,"merged":[[9,2,9,9],[10,2,10,9],[36,10,45,14],[21,2,21,9],[22,2,22,9],[24,2,24,9],[25,2,25,9],[27,2,27,9],[23,2,23,9],[11,2,11,9],[12,2,12,9],[13,2,13,9],[14,2,14,9],[35,10,35,14],[20,2,20,9],[15,2,15,9],[16,2,16,9],[17,2,17,9],[19,2,19,9],[18,2,18,9]]}
[null,"Overzicht gemeenten waarop financiële productieverantwoording WMO op totaalniveau betrekking heeft"]
[]
[]
[]
[]
[]
[]
[]
[null,0,"Gemeente(n)"]
[null,1,"Gouda"]
[null,2]
[null,3]
[null,4]
[null,5]
[null,6]
[null,7]
[null,8]
[null,9]
[null,10]
[null,11]
[null,12]
[null,13]
[null,14]
[null,15]
[null,16]
[null,15]
[null,500,null,null,null,null,null,null,null,null,null,null,null,"hide row"]
[null,null,null,null,null,null,null,null,null,null,null,null,null,"hide row"]
[]
[]
[]
[]
[]
[]
[]
[null,"Zorgaanbieder",null,null,null,null,null,null,null,null,"Waarmerking Accountant voor identificatiedoeleinden:"]
[null,{"$f":"CONCATENATE(\"Naam: \"&Totaalblad!$D$32)","v":"Naam: "},null,null,null,null,null,null,null,null,"behorend bij verklaring afgegeven d.d.:"]
[null,"Handtekening:"]
[]
[]
[]
[]
[]
[]
[]
[null,{"$f":"CONCATENATE(\"Datum: \"&Totaalblad!$D$41)","v":"Datum: "}]

{"sheet":"Versiebeheer","index":3,"n_rows":15,"n_cols":6,"rows_kept":15,"cut":false,"hidden":false,"merged":[]}
[]
[null,"Versiebeheer"]
[]
[null,"In onderstaande tabel ziet u welke mutaties er zijn ten opzichte van eerdere versies van het formulier Financiële productieverantwoording 20XX"]
[null,"Hiermee kunt u bepalen of de gedane aanpassingen voor u van belang zijn. "]
[]
[null,"De eerste versie van het formulier is van:",null,null,"2018-04-30"]
[null,"De huidige versie van het formulier is van:",null,null,{"$f":"MAX(B11:B20)","v":"2019-11-22"}]
[]
[null,"Versie","Werkblad","Regel(s)","Foutmelding","Aanpassing"]
[null,{"$f":"E7","v":"2018-04-30"},null,null,null,"Uitleverversie 1.0"]
[null,"2018-11-29","Totaalblad en gemeenten",null,"Jaartal 2017 in printversie","Jaartal aangepast. Naam auteur is verwijderd. Versie 1.1 beschikbaar gesteld."]
[null,"2019-01-24","Totaalblad en gemeenten",null,"Foutmelding bij aanmaken gemeente","Fouten opgelost. Tekstuele aanpassingen en optimaliseren werking. Versie 1.2 beschikbaar gesteld."]
[null,"2019-10-16","Invulinstructie en totoaalblad",null,"Datums achterhaald","Datums en jaartallen geactualiseerd."]
[null,"2019-11-22","Overzicht gemeenten",null,"Datums achterhaald","Datums in kopteksten en in per subtotalen in gegenereerde gemeentebladen op 2019 gezet."]

{"sheet":"begin","index":4,"n_rows":0,"n_cols":0,"rows_kept":0,"cut":false,"hidden":true,"merged":[]}

{"sheet":"Gemeente x","index":5,"n_rows":199,"n_cols":18,"rows_kept":199,"cut":false,"hidden":true,"merged":[[194,9,194,10],[122,2,122,5],[94,2,94,5],[100,2,100,5],[114,2,114,5],[121,2,121,5],[128,2,128,5],[180,1,180,10],[181,1,190,1],[168,1,168,10],[181,2,190,10],[169,1,178,1],[169,2,178,10],[167,1,167,10],[166,2,166,9],[115,2,115,5],[8,3,8,6],[9,3,9,6],[11,3,11,6],[20,2,20,5],[10,3,10,6],[11,1,11,2],[18,3,18,5],[157,2,157,5],[149,2,149,5],[150,2,150,5],[79,2,79,5],[57,2,57,5],[65,2,65,5],[86,2,86,5],[151,2,151,5],[63,2,63,5],[64,2,64,5],[135,2,135,5],[101,2,101,5],[108,2,108,5],[148,2,148,5],[129,2,129,5],[136,2,136,5],[21,2,21,5],[29,2,29,5],[35,2,35,5],[22,2,22,5],[34,2,34,5],[13,8,13,9],[12,8,12,9],[87,2,87,5],[120,2,120,5],[71,2,71,5],[56,2,56,5],[49,2,49,5],[27,2,27,5],[43,2,43,5],[50,2,50,5],[28,2,28,5],[36,2,36,5],[42,2,42,5],[41,2,41,5],[47,2,47,6],[48,2,48,5],[193,9,193,10],[77,2,77,5],[156,2,156,5],[72,2,72,5],[0,8,2,10],[7,8,7,10],[192,9,192,10],[106,2,106,5],[113,2,113,5],[8,1,8,2],[141,2,141,5],[70,2,70,5],[8,8,8,9],[9,8,9,9],[10,8,10,9],[11,8,11,9],[158,2,158,5],[143,2,143,5],[14,8,14,9],[85,2,85,5],[198,1,198,7],[55,2,55,6],[92,2,92,5],[93,2,93,5],[78,2,78,5],[107,2,107,5],[142,2,142,5],[58,2,58,5],[127,2,127,5],[134,2,134,5],[99,2,99,5],[165,2,165,9]]}
[null,"Financiële productieverantwoording Wmo",null,null,null,null,null,null,{"$f":"\"Gemeente \"&D9","v":"Gemeente "},null,null,null,null,null,null,null,"wmo",{"$f":"K165","v":0}]
[]
[null,null,null,null,null,null,null,null,null,null,null,null,null,null,null,null,"jeugd"]
[null,"In dit onderdeel verantwoordt de zorgaanbieder de geleverde prestaties waarover de zorgaanbieder verantwoording af dient te leggen bij de gemeente:  "]
[null,"geleverde prestaties met als grondslag de Wmo . Alle aantallen worden op basis van de werkelijke realisatie ingevuld. "]
[]
[]
[null,"Gemeente ",null,null,null,null,null,null,"Zorgaanbieder"]
[null,"Naam",null,null,null,null,null,null,"Naam",null,{"$f":"Totaalblad!D6","v":0}]
[null,"Contactpersoon",null,null,null,null,null,null,"Plaats",null,{"$f":"Totaalblad!D7","v":0}]
[null,"Telefoon",null,null,null,null,null,null,"KvK-nummer",null,{"$f":"Totaalblad!D8","v":0}]
[null,"E-mail",null,null,null,null,null,null,"Contactpersoon Wmo",null,{"$f":"IF(Totaalblad!E9=\"\",\"\",Totaalblad!E9)","v":""}]
[null,null,null,null,null,null,null,null,"Telefoon",null,{"$f":"IF(Totaalblad!D10=\"\",\"\",Totaalblad!D10)","v":""}]
[null,null,null,null,null,null,null,null,"E-mail",null,{"$f":"IF(Totaalblad!D11=\"\",\"\",Totaalblad!D11)","v":""}]
[null,null,null,null,null,null,null,null,"AGB-code",null,{"$f":"Totaalblad!D12","v":0}]
[]
[]
[null,"Geleverde prestaties Wmo"]
[null,null,"Inkoop order nr: "]
[]
[null,1,"Hulp bij het huishouden",null,null,null,"Code","Eenheid","Aantal (Q)","Prijs in € (P)","Realisatie 2019 in €\n"]
[null,100,null,null,null,null,null,null,null,null,{"$f":"I22*J22","v":0}]
[null,101,null,null,null,null,null,null,null,null,{"$f":"I23*J23","v":0}]
[null,199]
[null,null,"Totaal Hulp bij het huishouden",null,null,null,null,null,null,null,{"$f":"SUM(K22:K24)","v":0}]
[]
[]
[null,2,"Begeleiding",null,null,null,"Code","Eenheid","Aantal (Q)","Prijs in € (P)","Realisatie 2019 in €\n"]
[null,200,null,null,null,null,null,null,null,null,{"$f":"I29*J29","v":0}]
[null,201,null,null,null,null,null,null,null,null,{"$f":"I30*J30","v":0}]
[null,299]
[null,null,"Totaal Begeleiding",null,null,null,null,null,null,null,{"$f":"SUM(K29:K31)","v":0}]
[]
[]
[null,3,"Persoonlijke verzorging",null,null,null,"Code","Eenheid","Aantal (Q)","Prijs in € (P)","Realisatie 2019 in €\n"]
[null,300,null,null,null,null,null,null,null,null,{"$f":"I36*J36","v":0}]
[null,301,null,null,null,null,null,null,null,null,{"$f":"I37*J37","v":0}]
[null,399]
[null,null,"Totaal Persoonlijke verzorging",null,null,null,null,null,null,null,{"$f":"SUM(K36:K38)","v":0}]
[]
[]
[null,4,"Kortdurend verblijf",null,null,null,"Code","Eenheid","Aantal (Q)","Prijs in € (P)","Realisatie 2019 in €\n"]
[null,400,null,null,null,null,null,null,null,null,{"$f":"I43*J43","v":0}]
[null,401,null,null,null,null,null,null,null,null,{"$f":"I44*J44","v":0}]
[null,499]
[null,null,"Totaal Kortdurend verblijf",null,null,null,null,null,null,null,{"$f":"SUM(K43:K45)","v":0}]
[]
[]
[null,5,"Woondiensten",null,null,null,"Code","Eenheid","Aantal (Q)","Prijs in € (P)","Realisatie 2019 in €\n"]
[null,500,null,null,null,null,null,null,null,null,{"$f":"I50*J50","v":0}]
[null,501,null,null,null,null,null,null,null,null,{"$f":"I51*J51","v":0}]
[null,599]
[null,null,"Totaal Woondiensten",null,null,null,null,null,null,null,{"$f":"SUM(K50:K52)","v":0}]
[]
[]
[]
[null,6,"Overige ondersteuning gericht op het individu of huishouden/gezin",null,null,null,"Code","Eenheid","Aantal (Q)","Prijs in € (P)","Realisatie 2019 in €\n"]
[null,600,null,null,null,null,null,null,null,null,{"$f":"I58*J58","v":0}]
[null,601,null,null,null,null,null,null,null,null,{"$f":"I59*J59","v":0}]
[null,699]
[null,null,"Totaal Overige ondersteuning gericht op het individu of huishouden/gezin",null,null,null,null,null,null,null,{"$f":"SUM(K58:K60)","v":0}]
[]
[]
[null,7,"Dagbesteding",null,null,null,"Code","Eenheid","Aantal (Q)","Prijs in € (P)","Realisatie 2019 in €\n"]
[null,700,null,null,null,null,null,null,null,null,{"$f":"I65*J65","v":0}]
[null,701,null,null,null,null,null,null,null,null,{"$f":"I66*J66","v":0}]
[null,799]
[null,null,"Totaal Dagbesteding",null,null,null,null,null,null,null,{"$f":"SUM(K65:K67)","v":0}]
[]
[]
[null,8,"Vervoerdiensten",null,null,null,"Code","Eenheid","Aantal (Q)","Prijs in € (P)","Realisatie 2019 in €\n"]
[null,800,null,null,null,null,null,null,null,null,{"$f":"I72*J72","v":0}]
[null,801,null,null,null,null,null,null,null,null,{"$f":"I73*J73","v":0}]
[null,899]
[null,null,"Totaal Vervoerdiensten",null,null,null,null,null,null,null,{"$f":"SUM(K72:K74)","v":0}]
[]
[]
[null,9,"Overige groepsgerichte ondersteuning",null,null,null,"Code","Eenheid","Aantal (Q)","Prijs in € (P)","Realisatie 2019 in €\n"]
[null,900,null,null,null,null,null,null,null,null,{"$f":"I79*J79","v":0}]
[null,901,null,null,null,null,null,null,null,null,{"$f":"I80*J80","v":0}]
[null,999]
[null,null,"Totaal Overige groepsgerichte ondersteuning",null,null,null,null,null,null,null,{"$f":"SUM(K79:K81)","v":0}]
[]
[]
[]
[null,10,"Overige maatwerk arrangementen",null,null,null,"Code","Eenheid","Aantal (Q)","Prijs in € (P)","Realisatie 2019 in €\n"]
[null,1000,null,null,null,null,null,null,null,null,{"$f":"I87*J87","v":0}]
[null,{"$f":"B87+1","v":1001},null,null,null,null,null,null,null,null,{"$f":"I88*J88","v":0}]
[null,1099]
[null,null,"Totaal Overige maatwerk arrangementen",null,null,null,null,null,null,null,{"$f":"SUM(K87:K89)","v":0}]
[]
[]
[null,11,"Rolstoelen",null,null,null,"Code","Eenheid","Aantal (Q)","Prijs in € (P)","Realisatie 2019 in €\n"]
[null,1100,null,null,null,null,null,null,null,null,{"$f":"I94*J94","v":0}]
[null,1101,null,null,null,null,null,null,null,null,{"$f":"I95*J95","v":0}]
[null,1199]
[null,null,"Totaal Rolstoelen",null,null,null,null,null,null,null,{"$f":"SUM(K94:K96)","v":0}]
[]
[]
[null,12,"Vervoervoorzieningen",null,null,null,"Code","Eenheid","Aantal (Q)","Prijs in € (P)","Realisatie 2019 in €\n"]
[null,1200,null,null,null,null,null,null,null,null,{"$f":"I101*J101","v":0}]
[null,1201,null,null,null,null,null,null,null,null,{"$f":"I102*J102","v":0}]
[null,1299]
[null,null,"Totaal Vervoervoorzieningen",null,null,null,null,null,null,null,{"$f":"SUM(K101:K103)","v":0}]
[]
[]
[null,13,"Woonvoorzieningen",null,null,null,"Code","Eenheid","Aantal (Q)","Prijs in € (P)","Realisatie 2019 in €\n"]
[null,1300,null,null,null,null,null,null,null,null,{"$f":"I108*J108","v":0}]
[null,1301,null,null,null,null,null,null,null,null,{"$f":"I109*J109","v":0}]
[null,1399]
[null,null,"Totaal Woonvoorzieningen",null,null,null,null,null,null,null,{"$f":"SUM(K108:K110)","v":0}]
[]
[]
[null,14,"Overige hulpmiddelen",null,null,null,"Code","Eenheid","Aantal (Q)","Prijs in € (P)","Realisatie 2019 in €\n"]
[null,1400,null,null,null,null,null,null,null,null,{"$f":"I115*J115","v":0}]
[null,1401,null,null,null,null,null,null,null,null,{"$f":"I116*J116","v":0}]
[null,1499]
[null,null,"Totaal Overige hulpmiddelen",null,null,null,null,null,null,null,{"$f":"SUM(K115:K117)","v":0}]
[]
[]
[null,15,"Beschermd wonen",null,null,null,"Code","Eenheid","Aantal (Q)","Prijs in € (P)","Realisatie 2019 in €\n"]
[null,1500,null,null,null,null,null,null,null,null,{"$f":"I122*J122","v":0}]
[null,1501,null,null,null,null,null,null,null,null,{"$f":"I123*J123","v":0}]
[null,1599]
[null,null,"Totaal Beschermd wonen",null,null,null,null,null,null,null,{"$f":"SUM(K122:K124)","v":0}]
[]
[]
[null,16,"Opvang",null,null,null,"Code","Eenheid","Aantal (Q)","Prijs in € (P)","Realisatie 2019 in €\n"]
[null,1600,null,null,null,null,null,null,null,null,{"$f":"I129*J129","v":0}]
[null,1601,null,null,null,null,null,null,null,null,{"$f":"I130*J130","v":0}]
[null,1699]
[null,null,"Totaal Opvang",null,null,null,null,null,null,null,{"$f":"SUM(K129:K131)","v":0}]
[]
[]
[null,17,"Spoedopvang",null,null,null,"Code","Eenheid","Aantal (Q)","Prijs in € (P)","Realisatie 2019 in €\n"]
[null,1700,null,null,null,null,null,null,null,null,{"$f":"I136*J136","v":0}]
[null,1701,null,null,null,null,null,null,null,null,{"$f":"I137*J137","v":0}]
[null,1799]
[null,null,"Totaal Spoedopvang",null,null,null,null,null,null,null,{"$f":"SUM(K136:K138)","v":0}]
[]
[]
[null,18,"Overige beschermd wonen en opvang",null,null,null,"Code","Eenheid","Aantal (Q)","Prijs in € (P)","Realisatie 2019 in €\n"]
[null,1800,null,null,null,null,null,null,null,null,{"$f":"I143*J143","v":0}]
[null,1801,null,null,null,null,null,null,null,null,{"$f":"I144*J144","v":0}]
[null,1899]
[null,null,"Totaal Overige beschermd wonen en opvang",null,null,null,null,null,null,null,{"$f":"SUM(K143:K145)","v":0}]
[]
[]
[null,19,"Overige geleverde prestaties of vergoedingen",null,null,null,"Code","Financierings-\nvorm","Aantal (Q)","Prijs in € (P)","Realisatie 2019 in €\n",null," "]
[null,1900,"Subsidiabele kosten ",null,null,null,null,null,null,null,{"$f":"I150*J150","v":0}]
[null,1901,"Lumpsum ",null,null,null,null,null,null,null,{"$f":"I151*J151","v":0}]
[null,1902,"Correcties",null,null,null,null,null,null,null,{"$f":"I152*J152","v":0}]
[null,1999]
[null,null,"Totaal Overige geleverde prestaties of vergoedingen",null,null,null,null,null,null,null,{"$f":"SUM(K150:K153)","v":0}]
[]
[]
[null,20,"Landelijke inkoopafspraken specialistische begeleiding ZG",null,null,null,"Code","Eenheid","Aantal (Q)","Prijs in € (P)","Realisatie 2019 in €\n"]
[null,2000,null,null,null,null,null,null,null,null,{"$f":"I158*J158","v":0}]
[null,2001,null,null,null,null,null,null,null,null,{"$f":"I159*J159","v":0}]
[null,2099]
[null,null,"Totaal Landelijke inkoopafspraken specialistische begeleiding ZG",null,null,null,null,null,null,null,{"$f":"SUM(K158:K160)","v":0}]
[]
[]
[null,21,"Financiële realisatie Wmo prestaties",null,null,null,null,null,null,null,"Totaal budget in €"]
[null,2100,"Gerealiseerde productie Wmo",null,null,null,null,null,null,null,{"$f":"SUM(K39+K32+K25+K53+K61+K46+K68+K75+K82+K90+K97+K104+K111+K118+K125+K132+K139+K146+K154+K161)","v":0}]
[null,{"$f":"B165+1","v":2101},"Afgesproken budget Wmo"]
[null,{"$f":"B166+1","v":2102},"Gerealiseerde omzet Wmo",null,null,null,null,null,null,null,{"$f":"IF(K165>K166,K166,K165)","v":0}]
[]
[null,"Ruimte voor toelichting in verband met ongecorrigeerde afwijkingen en onzekerheden"]
[]
[]
[]
[]
[]
[]
[]
[]
[]
[]
[]
[null,"Ruimte voor algemene toelichting"]
[]
[]
[]
[]
[]
[]
[]
[]
[]
[]
[]
[null,"Zorgaanbieder",null,null,null,null,null,null,null,"Rapport van bevindingen:"]
[null,{"$f":"CONCATENATE(\"Naam: \"&Totaalblad!$D$32)","v":"Naam: "},null,null,null,null,null,null,null,"Ja/Nee"]
[null,"Handtekening:",null,null,null,null,null,null,null,"A.u.b. kiezen wat van toepassing is."]
[]
[]
[]
[null,{"$f":"CONCATENATE(\"Datum: \"&Totaalblad!$D$41)","v":"Datum: "}]

{"sheet":"Gouda","index":6,"n_rows":199,"n_cols":18,"rows_kept":199,"cut":false,"hidden":false,"merged":[[198,1,198,7],[180,1,180,10],[181,1,190,1],[181,2,190,10],[192,9,192,10],[193,9,193,10],[194,9,194,10],[165,2,165,9],[166,2,166,9],[167,1,167,10],[168,1,168,10],[169,1,178,1],[169,2,178,10],[149,2,149,5],[150,2,150,5],[151,2,151,5],[156,2,156,5],[157,2,157,5],[158,2,158,5],[135,2,135,5],[136,2,136,5],[141,2,141,5],[142,2,142,5],[143,2,143,5],[148,2,148,5],[121,2,121,5],[122,2,122,5],[127,2,127,5],[128,2,128,5],[129,2,129,5],[134,2,134,5],[107,2,107,5],[108,2,108,5],[113,2,113,5],[114,2,114,5],[115,2,115,5],[120,2,120,5],[93,2,93,5],[94,2,94,5],[99,2,99,5],[100,2,100,5],[101,2,101,5],[106,2,106,5],[78,2,78,5],[79,2,79,5],[85,2,85,5],[86,2,86,5],[87,2,87,5],[92,2,92,5],[64,2,64,5],[65,2,65,5],[70,2,70,5],[71,2,71,5],[72,2,72,5],[77,2,77,5],[50,2,50,5],[55,2,55,6],[56,2,56,5],[57,2,57,5],[58,2,58,5],[63,2,63,5],[41,2,41,5],[42,2,42,5],[43,2,43,5],[47,2,47,6],[48,2,48,5],[49,2,49,5],[27,2,27,5],[28,2,28,5],[29,2,29,5],[34,2,34,5],[35,2,35,5],[36,2,36,5],[13,8,13,9],[14,8,14,9],[18,3,18,5],[20,2,20,5],[21,2,21,5],[22,2,22,5],[10,3,10,6],[10,8,10,9],[11,1,11,2],[11,3,11,6],[11,8,11,9],[12,8,12,9],[0,8,2,10],[7,8,7,10],[8,1,8,2],[8,3,8,6],[8,8,8,9],[9,3,9,6],[9,8,9,9]]}
[null,"Financiële productieverantwoording Wmo",null,null,null,null,null,null,{"$f":"\"Gemeente \"&D9","v":"Gemeente Gouda"},null,null,null,null,null,null,null,"wmo",{"$f":"K165","v":540}]
[]
[null,null,null,null,null,null,null,null,null,null,null,null,null,null,null,null,"jeugd"]
[null,"In dit onderdeel verantwoordt de zorgaanbieder de geleverde prestaties waarover de zorgaanbieder verantwoording af dient te leggen bij de gemeente:  "]
[null,"geleverde prestaties met als grondslag de Wmo . Alle aantallen worden op basis van de werkelijke realisatie ingevuld. "]
[]
[]
[null,"Gemeente ",null,null,null,null,null,null,"Zorgaanbieder"]
[null,"Naam",null,"Gouda",null,null,null,null,"Naam",null,{"$f":"Totaalblad!D6","v":0}]
[null,"Contactpersoon",null,"cvxb",null,null,null,null,"Plaats",null,{"$f":"Totaalblad!D7","v":0}]
[null,"Telefoon",null,"xcvb",null,null,null,null,"KvK-nummer",null,{"$f":"Totaalblad!D8","v":0}]
[null,"E-mail",null,"cxvbcb",null,null,null,null,"Contactpersoon Wmo",null,"sdjfh"]
[null,null,null,null,null,null,null,null,"Telefoon",null,"sdaf"]
[null,null,null,null,null,null,null,null,"E-mail",null,"asdf"]
[null,null,null,null,null,null,null,null,"AGB-code",null,{"$f":"Totaalblad!D12","v":0}]
[]
[]
[null,"Geleverde prestaties Wmo"]
[null,null,"Inkoop order nr: "]
[]
[null,1,"Hulp bij het huishouden",null,null,null,"Code","Eenheid","Aantal (Q)","Prijs in € (P)","Realisatie 2019 in €\n"]
[null,100,null,null,null,null,null,null,null,null,{"$f":"I22*J22","v":0}]
[null,101,null,null,null,null,null,null,null,null,{"$f":"I23*J23","v":0}]
[null,199]
[null,null,"Totaal Hulp bij het huishouden",null,null,null,null,null,null,null,{"$f":"SUM(K22:K24)","v":0}]
[]
[]
[null,2,"Begeleiding",null,null,null,"Code","Eenheid","Aantal (Q)","Prijs in € (P)","Realisatie 2019 in €\n"]
[null,200,null,null,null,null,null,null,null,null,{"$f":"I29*J29","v":0}]
[null,201,null,null,null,null,null,null,null,null,{"$f":"I30*J30","v":0}]
[null,299]
[null,null,"Totaal Begeleiding",null,null,null,null,null,null,null,{"$f":"SUM(K29:K31)","v":0}]
[]
[]
[null,3,"Persoonlijke verzorging",null,null,null,"Code","Eenheid","Aantal (Q)","Prijs in € (P)","Realisatie 2019 in €\n"]
[null,300,null,null,null,null,null,null,null,null,{"$f":"I36*J36","v":0}]
[null,301,null,null,null,null,null,null,null,null,{"$f":"I37*J37","v":0}]
[null,399]
[null,null,"Totaal Persoonlijke verzorging",null,null,null,null,null,null,null,{"$f":"SUM(K36:K38)","v":0}]
[]
[]
[null,4,"Kortdurend verblijf",null,null,null,"Code","Eenheid","Aantal (Q)","Prijs in € (P)","Realisatie 2019 in €\n"]
[null,400,null,null,null,null,null,null,null,null,{"$f":"I43*J43","v":0}]
[null,401,null,null,null,null,null,null,null,null,{"$f":"I44*J44","v":0}]
[null,499]
[null,null,"Totaal Kortdurend verblijf",null,null,null,null,null,null,null,{"$f":"SUM(K43:K45)","v":0}]
[]
[]
[null,5,"Woondiensten",null,null,null,"Code","Eenheid","Aantal (Q)","Prijs in € (P)","Realisatie 2019 in €\n"]
[null,500,null,null,null,null,null,null,null,null,{"$f":"I50*J50","v":0}]
[null,501,null,null,null,null,null,null,null,null,{"$f":"I51*J51","v":0}]
[null,599]
[null,null,"Totaal Woondiensten",null,null,null,null,null,null,null,{"$f":"SUM(K50:K52)","v":0}]
[]
[]
[]
[null,6,"Overige ondersteuning gericht op het individu of huishouden/gezin",null,null,null,"Code","Eenheid","Aantal (Q)","Prijs in € (P)","Realisatie 2019 in €\n"]
[null,600,null,null,null,null,null,null,null,null,{"$f":"I58*J58","v":0}]
[null,601,null,null,null,null,null,null,null,null,{"$f":"I59*J59","v":0}]
[null,699]
[null,null,"Totaal Overige ondersteuning gericht op het individu of huishouden/gezin",null,null,null,null,null,null,null,{"$f":"SUM(K58:K60)","v":0}]
[]
[]
[null,7,"Dagbesteding",null,null,null,"Code","Eenheid","Aantal (Q)","Prijs in € (P)","Realisatie 2019 in €\n"]
[null,700,null,null,null,null,null,null,null,null,{"$f":"I65*J65","v":0}]
[null,701,null,null,null,null,null,null,null,null,{"$f":"I66*J66","v":0}]
[null,799]
[null,null,"Totaal Dagbesteding",null,null,null,null,null,null,null,{"$f":"SUM(K65:K67)","v":0}]
[]
[]
[null,8,"Vervoerdiensten",null,null,null,"Code","Eenheid","Aantal (Q)","Prijs in € (P)","Realisatie 2019 in €\n"]
[null,800,null,null,null,null,null,null,null,null,{"$f":"I72*J72","v":0}]
[null,801,null,null,null,null,null,null,null,null,{"$f":"I73*J73","v":0}]
[null,899]
[null,null,"Totaal Vervoerdiensten",null,null,null,null,null,null,null,{"$f":"SUM(K72:K74)","v":0}]
[]
[]
[null,9,"Overige groepsgerichte ondersteuning",null,null,null,"Code","Eenheid","Aantal (Q)","Prijs in € (P)","Realisatie 2019 in €\n"]
[null,900,null,null,null,null,null,null,null,null,{"$f":"I79*J79","v":0}]
[null,901,null,null,null,null,null,null,null,null,{"$f":"I80*J80","v":0}]
[null,999]
[null,null,"Totaal Overige groepsgerichte ondersteuning",null,null,null,null,null,null,null,{"$f":"SUM(K79:K81)","v":0}]
[]
[]
[]
[null,10,"Overige maatwerk arrangementen",null,null,null,"Code","Eenheid","Aantal (Q)","Prijs in € (P)","Realisatie 2019 in €\n"]
[null,1000,null,null,null,null,null,null,null,null,{"$f":"I87*J87","v":0}]
[null,{"$f":"B87+1","v":1001},null,null,null,null,null,null,null,null,{"$f":"I88*J88","v":0}]
[null,1099]
[null,null,"Totaal Overige maatwerk arrangementen",null,null,null,null,null,null,null,{"$f":"SUM(K87:K89)","v":0}]
[]
[]
[null,11,"Rolstoelen",null,null,null,"Code","Eenheid","Aantal (Q)","Prijs in € (P)","Realisatie 2019 in €\n"]
[null,1100,null,null,null,null,null,null,null,null,{"$f":"I94*J94","v":0}]
[null,1101,null,null,null,null,null,null,null,null,{"$f":"I95*J95","v":0}]
[null,1199]
[null,null,"Totaal Rolstoelen",null,null,null,null,null,null,null,{"$f":"SUM(K94:K96)","v":0}]
[]
[]
[null,12,"Vervoervoorzieningen",null,null,null,"Code","Eenheid","Aantal (Q)","Prijs in € (P)","Realisatie 2019 in €\n"]
[null,1200,null,null,null,null,null,null,null,null,{"$f":"I101*J101","v":0}]
[null,1201,null,null,null,null,null,null,null,null,{"$f":"I102*J102","v":0}]
[null,1299]
[null,null,"Totaal Vervoervoorzieningen",null,null,null,null,null,null,null,{"$f":"SUM(K101:K103)","v":0}]
[]
[]
[null,13,"Woonvoorzieningen",null,null,null,"Code","Eenheid","Aantal (Q)","Prijs in € (P)","Realisatie 2019 in €\n"]
[null,1300,null,null,null,null,null,null,null,null,{"$f":"I108*J108","v":0}]
[null,1301,null,null,null,null,null,null,null,null,{"$f":"I109*J109","v":0}]
[null,1399]
[null,null,"Totaal Woonvoorzieningen",null,null,null,null,null,null,null,{"$f":"SUM(K108:K110)","v":0}]
[]
[]
[null,14,"Overige hulpmiddelen",null,null,null,"Code","Eenheid","Aantal (Q)","Prijs in € (P)","Realisatie 2019 in €\n"]
[null,1400,null,null,null,null,null,null,null,null,{"$f":"I115*J115","v":0}]
[null,1401,null,null,null,null,null,null,null,null,{"$f":"I116*J116","v":0}]
[null,1499]
[null,null,"Totaal Overige hulpmiddelen",null,null,null,null,null,null,null,{"$f":"SUM(K115:K117)","v":0}]
[]
[]
[null,15,"Beschermd wonen",null,null,null,"Code","Eenheid","Aantal (Q)","Prijs in € (P)","Realisatie 2019 in €\n"]
[null,1500,null,null,null,null,null,null,null,null,{"$f":"I122*J122","v":0}]
[null,1501,null,null,null,null,null,null,null,null,{"$f":"I123*J123","v":0}]
[null,1599]
[null,null,"Totaal Beschermd wonen",null,null,null,null,null,null,null,{"$f":"SUM(K122:K124)","v":0}]
[]
[]
[null,16,"Opvang",null,null,null,"Code","Eenheid","Aantal (Q)","Prijs in € (P)","Realisatie 2019 in €\n"]
[null,1600,null,null,null,null,null,null,null,null,{"$f":"I129*J129","v":0}]
[null,1601,null,null,null,null,null,null,null,null,{"$f":"I130*J130","v":0}]
[null,1699]
[null,null,"Totaal Opvang",null,null,null,null,null,null,null,{"$f":"SUM(K129:K131)","v":0}]
[]
[]
[null,17,"Spoedopvang",null,null,null,"Code","Eenheid","Aantal (Q)","Prijs in € (P)","Realisatie 2019 in €\n"]
[null,1700,null,null,null,null,null,null,null,null,{"$f":"I136*J136","v":0}]
[null,1701,null,null,null,null,null,null,null,null,{"$f":"I137*J137","v":0}]
[null,1799]
[null,null,"Totaal Spoedopvang",null,null,null,null,null,null,null,{"$f":"SUM(K136:K138)","v":0}]
[]
[]
[null,18,"Overige beschermd wonen en opvang",null,null,null,"Code","Eenheid","Aantal (Q)","Prijs in € (P)","Realisatie 2019 in €\n"]
[null,1800,null,null,null,null,null,null,2,20,{"$f":"I143*J143","v":40}]
[null,1801,null,null,null,null,null,null,null,null,{"$f":"I144*J144","v":0}]
[null,1899]
[null,null,"Totaal Overige beschermd wonen en opvang",null,null,null,null,null,null,null,{"$f":"SUM(K143:K145)","v":40}]
[]
[]
[null,19,"Overige geleverde prestaties of vergoedingen",null,null,null,"Code","Financierings-\nvorm","Aantal (Q)","Prijs in € (P)","Realisatie 2019 in €\n",null," "]
[null,1900,"Subsidiabele kosten ",null,null,null,null,null,5,100,{"$f":"I150*J150","v":500}]
[null,1901,"Lumpsum ",null,null,null,null,null,null,null,{"$f":"I151*J151","v":0}]
[null,1902,"Correcties",null,null,null,null,null,null,null,{"$f":"I152*J152","v":0}]
[null,1999]
[null,null,"Totaal Overige geleverde prestaties of vergoedingen",null,null,null,null,null,null,null,{"$f":"SUM(K150:K153)","v":500}]
[]
[]
[null,20,"Landelijke inkoopafspraken specialistische begeleiding ZG",null,null,null,"Code","Eenheid","Aantal (Q)","Prijs in € (P)","Realisatie 2019 in €\n"]
[null,2000,null,null,null,null,null,null,null,null,{"$f":"I158*J158","v":0}]
[null,2001,null,null,null,null,null,null,null,null,{"$f":"I159*J159","v":0}]
[null,2099]
[null,null,"Totaal Landelijke inkoopafspraken specialistische begeleiding ZG",null,null,null,null,null,null,null,{"$f":"SUM(K158:K160)","v":0}]
[]
[]
[null,21,"Financiële realisatie Wmo prestaties",null,null,null,null,null,null,null,"Totaal budget in €"]
[null,2100,"Gerealiseerde productie Wmo",null,null,null,null,null,null,null,{"$f":"SUM(K39+K32+K25+K53+K61+K46+K68+K75+K82+K90+K97+K104+K111+K118+K125+K132+K139+K146+K154+K161)","v":540}]
[null,{"$f":"B165+1","v":2101},"Afgesproken budget Wmo"]
[null,{"$f":"B166+1","v":2102},"Gerealiseerde omzet Wmo",null,null,null,null,null,null,null,{"$f":"IF(K165>K166,K166,K165)","v":0}]
[]
[null,"Ruimte voor toelichting in verband met ongecorrigeerde afwijkingen en onzekerheden"]
[]
[]
[]
[]
[]
[]
[]
[]
[]
[]
[]
[null,"Ruimte voor algemene toelichting"]
[]
[]
[]
[]
[]
[]
[]
[]
[]
[]
[]
[null,"Zorgaanbieder",null,null,null,null,null,null,null,"Rapport van bevindingen:"]
[null,{"$f":"CONCATENATE(\"Naam: \"&Totaalblad!$D$32)","v":"Naam: "},null,null,null,null,null,null,null,"Ja/Nee"]
[null,"Handtekening:",null,null,null,null,null,null,null,"A.u.b. kiezen wat van toepassing is."]
[]
[]
[]
[null,{"$f":"CONCATENATE(\"Datum: \"&Totaalblad!$D$41)","v":"Datum: "}]

{"sheet":"einde","index":7,"n_rows":0,"n_cols":0,"rows_kept":0,"cut":false,"hidden":true,"merged":[]}

{"sheet":"Categorie","index":8,"n_rows":18,"n_cols":2,"rows_kept":18,"cut":false,"hidden":true,"merged":[]}
["NR","Productcategorie"]
[1,"Hulp bij het huishouden"]
[2,"Begeleiding "]
[3,"Persoonlijke verzorging"]
[4,"Kortdurend verblijf"]
[5,"Woondiensten"]
[6,"Overige ondersteuning gericht op het individu of huishouden/gezin"]
[7,"Dagbesteding"]
[8,"Vervoerdiensten"]
[9,"Overige groepsgerichte ondersteuning"]
[10,"Overige maatwerk arrangementen"]
[11,"Rolstoelen"]
[12,"Vervoervoorzieningen"]
[13,"Woonvoorzieningen"]
[14,"Overige hulpmiddelen"]
[15,"Beschermd wonen"]
[16,"Opvang"]
[17,"Spoedopvang"]

{"sheet":"Productcodes","index":9,"n_rows":364,"n_cols":3,"rows_kept":364,"cut":false,"hidden":false,"merged":[]}
["IWMO 2.3","WMO021 - PRODUCTCODE","CODE"]
["Versie","2017-10-01"]
[null,"Betekenis","Code"]
[1,"Hulp bij het huishouden"]
[null,"Hulp bij het huishouden: outputgericht","01A00"]
[null,"HH 1: outputgericht","01A01"]
[null,"HH 2: outputgericht","01A02"]
[null,"HH 3: outputgericht","01A03"]
[null,"HH 1: inspanningsgericht","01A04"]
[null,"HH 2: inspanningsgericht","01A05"]
[null,"HH 3: inspanningsgericht","01A06"]
[null,"HH 1: outputgericht (licht)","01A07"]
[null,"HH 1: outputgericht (middel)","01A08"]
[null,"HH 1: outputgericht (middelzwaar)","01A09"]
[null,"HH 1: outputgericht (zwaar)","01A10"]
[null,"HH 1: outputgericht (extra zwaar)","01A11"]
[null,"HH 2: outputgericht (licht)","01A12"]
[null,"HH 2: outputgericht (middel)","01A13"]
[null,"HH 2: outputgericht (middelzwaar)","01A14"]
[null,"HH 2: outputgericht (zwaar)","01A15"]
[null,"HH 2: outputgericht (extra zwaar)","01A16"]
[null,"HH 3: outputgericht (licht)","01A17"]
[null,"HH 3: outputgericht (middel)","01A18"]
[null,"HH 3: outputgericht (middelzwaar)","01A19"]
[null,"HH 3: outputgericht (zwaar)","01A20"]
[null,"HH 3: outputgericht (extra zwaar)","01A21"]
[null,"HH1 (huishoudelijke werkzaamheden)",1001]
[null,"HH2 (organisatie van het huishouden)",1002]
[2,"Begeleiding "]
[null,"Begeleiding regulier: outputgericht","02A01"]
[null,"Begeleiding specialistisch: outputgericht","02A02"]
[null,"Begeleiding regulier: inspanningsgericht","02A03"]
[null,"Begeleiding mantelzorg: inspanningsgericht","02A04"]
[null,"Begeleiding specialistisch: inspanningsgericht","02A05"]
[null,"Begeleiding regulier: outputgericht (licht)","02A06"]
[null,"Begeleiding regulier: outputgericht (middel)","02A07"]
[null,"Begeleiding regulier: outputgericht (middelzwaar)","02A08"]
[null,"Begeleiding regulier: outputgericht (zwaar)","02A09"]
[null,"Begeleiding regulier: outputgericht (extra zwaar)","02A10"]
[null,"Begeleiding specialistisch: outputgericht (licht)","02A11"]
[null,"Begeleiding specialistisch: outputgericht (middel)","02A12"]
[null,"Begeleiding specialistisch: outputgericht (middelzwaar)","02A13"]
[null,"Begeleiding specialistisch: outputgericht (zwaar)","02A14"]
[null,"Begeleiding specialistisch: outputgericht (extra zwaar)","02A15"]
[null,"Begeleiding regulier: inspanningsgericht (individueel)","02A16"]
[null,"Begeleiding regulier: inspanningsgericht (groep)","02A17"]
[null,"Begeleiding regulier: inspanningsgericht (op afstand)","02A18"]
[null,"Begeleiding specialistisch: inspanningsgericht (individueel)","02A19"]
[null,"Begeleiding specialistisch: inspanningsgericht (groep)","02A20"]
[null,"Begeleiding specialistisch: inspanningsgericht (op afstand)","02A21"]
[null,"Begeleiding laag tarief: inspanningsgericht","02A22"]
[null,"Begeleiding GGZ: outputgericht (licht)","02A23"]
[null,"Begeleiding GGZ: outputgericht (middel)","02A24"]
[null,"Begeleiding GGZ: outputgericht (zwaar)","02A25"]
[null,"Begeleiding GHZ: outputgericht (licht)","02A26"]
[null,"Begeleiding GHZ: outputgericht (middel)","02A27"]
[null,"Begeleiding GHZ: outputgericht (zwaar)","02A28"]
[null,"Begeleiding VV&T: outputgericht (licht)","02A29"]
[null,"Begeleiding VV&T: outputgericht (middel)","02A30"]
[null,"Begeleiding VV&T: outputgericht (zwaar)","02A31"]
[null,"Mantelzorg GGZ: outputgericht (licht)","02A32"]
[null,"Mantelzorg GGZ: outputgericht (middel)","02A33"]
[null,"Mantelzorg GGZ: outputgericht (zwaar)","02A34"]
[null,"Mantelzorg GHZ: outputgericht (licht)","02A35"]
[null,"Mantelzorg GHZ: outputgericht (middel)","02A36"]
[null,"Mantelzorg GHZ: outputgericht (zwaar)","02A37"]
[null,"Mantelzorg VV&T: outputgericht (licht)","02A38"]
[null,"Mantelzorg VV&T: outputgericht (middel)","02A39"]
[null,"Mantelzorg VV&T: outputgericht (zwaar)","02A40"]
[null,"Vroegdoven: Toeleiding (landelijke inkoop ZG)","02L01"]
[null,"Vroegdoven: Verlengde toeleiding (landelijke inkoop ZG)","02L02"]
[null,"Vroegdoven: Consultatie (landelijke inkoop ZG)","02L03"]
[null,"Vroegdoven: Dovenmaatschappelijkwerk(landelijke inkoop ZG)","02L04"]
[null,"Vroegdoven: Gespecialiseerde begeleiding (landelijke inkoop ZG)","02L05"]
[null,"Vroegdoven: Revaliderende begeleiding (landelijke inkoop ZG)","02L06"]
[null,"Doofblinden: Toeleiding (landelijke inkoop ZG)","02L08"]
[null,"Doofblinden: Verlengde toeleiding (landelijke inkoop ZG)","02L09"]
[null,"Doofblinden: Consultatie (landelijke inkoop ZG)","02L10"]
[null,"Doofblinden: Dovenmaatschappelijkwerk (landelijke inkoop ZG)","02L11"]
[null,"Doofblinden: Gespecialiseerde begeleiding (landelijke inkoop ZG)","02L12"]
[null,"Doofblinden: Begeleidersvoorziening (landelijke inkoop ZG)","02L13"]
[null,"Visueel: gespecialiseerde begeleiding (landelijke inkoop ZG)","02L15"]
[null,"Aanbrengen van structuur c.q. voeren van regie",2001]
[null,"Begeleiding bij beperkingen in de ontwikkeling",2002]
[null,"Begeleiding bij fysieke beperkingen",2003]
[null,"Begeleiding bij psychosociale beperkingen",2004]
[null,"Begeleiding bij vervoer",2005]
[null,"Begeleiding bij/naar het zelfstandig wonen",2006]
[null,"Oefenen (onder begeleiding) ",2007]
[null,"Ondersteuning bij praktische handelingen/vaardigheden",2008]
[null,"Sociale relaties en maatschappelijk leven",2009]
[null,"Toezicht",2010]
[null,"Toeleiding ZG",2011]
[null,"Verlengde toeleiding ZG",2012]
[null,"Consultatie ZG",2013]
[null,"Beantwoording korte begeleidingsvragen ZG",2014]
[null,"Gespecialiseerde begeleiding ZG",2015]
[null,"Revaliderende begeleiding ZG",2016]
[null,"Begeleidersvoorziening doofblinden",2017]
[null,"Doventolk",2018]
[3,"Persoonlijke verzorging"]
[null,"Persoonlijke verzorging specialistisch: outputgericht","03A01"]
[null,"Persoonlijke verzorging regulier: outputgericht","03A02"]
[null,"Persoonlijke verzorging regulier: inspanningsgericht","03A03"]
[null,"Persoonlijke verzorging specialistisch: inspanningsgericht","03A04"]
[null,"Persoonlijke verzorging regulier: outputgericht (licht)","03A05"]
[null,"Persoonlijke verzorging regulier: outputgericht (middel)","03A06"]
[null,"Persoonlijke verzorging regulier: outputgericht (zwaar)","03A07"]
[null,"Persoonlijke verzorging specialistisch: outputgericht (licht)","03A08"]
[null,"Persoonlijke verzorging specialistisch: outputgericht (middel)","03A09"]
[null,"Persoonlijke verzorging specialistisch: outputgericht (zwaar)","03A10"]
[null,"Persoonlijke verzorging regulier: inspanningsgericht (individueel)","03A11"]
[null,"Persoonlijke verzorging regulier: inspanningsgericht (op afstand)","03A12"]
[null,"Persoonlijke verzorging specialistisch: inspanningsgericht (individueel)","03A13"]
[null,"Persoonlijke verzorging specialistisch: inspanningsgericht (op afstand)","03A14"]
[null,"Persoonlijke verzorging laag tarief: inspanningsgericht","03A15"]
[4,"Kortdurend verblijf"]
[null,"Kortdurend verblijf: outputgericht","04A00"]
[null,"Kortdurend verblijf: inspanningsgericht","04A01"]
[null,"Kortdurend verblijf regulier: inspanningsgericht","04A02"]
[null,"Kortdurend verblijf deeltijdzorg: inspanningsgericht","04A03"]
[null,"Kortdurend verblijf: logeer/respijtzorg","04A04"]
[null,"Kortdurend verblijf: inspanningsgericht (licht)","04A05"]
[null,"Kortdurend verblijf: inspanningsgericht (middel)","04A06"]
[null,"Kortdurend verblijf: inspanningsgericht (middelzwaar)","04A07"]
[null,"Kortdurend verblijf: inspanningsgericht (zwaar)","04A08"]
[null,"Kortdurend verblijf: inspanningsgericht (extra zwaar)","04A09"]
[null,"Kortdurend verblijf specialistisch: inspanningsgericht","04A10"]
[null,"Deeltijdverblijf",4001]
[null,"Logeeropvang",4002]
[5,"Woondiensten"]
[null,"Huurderving","05A01"]
[null,"Keuring woonvoorziening","05A02"]
[null,"Tijdelijke huisvesting","05A03"]
[null,"Verhuizing en inrichting","05A04"]
[null,"Vrijmaken woning","05A05"]
[null,"Boodschappendienst","05A06"]
[null,"Maaltijdvoorziening","05A07"]
[null,"Huurderving",5001]
[null,"Keuring woonvoorziening",5002]
[null,"Tijdelijke huisvesting",5003]
[null,"Verhuizing en inrichting",5004]
[null,"Vrijmaken woning",5005]
[6,"Overige ondersteuning gericht op het individu of huishouden/gezin"]
[null,"Boodschappendienst",6001]
[null,"Maaltijdvoorziening",6002]
[7,"Dagbesteding"]
[null,"Dagbesteding regulier: outputgericht","07A01"]
[null,"Dagbesteding specialistisch: outputgericht","07A02"]
[null,"Dagbesteding regulier: inspanningsgericht","07A03"]
[null,"Dagbesteding specialistisch: inspanningsgericht","07A04"]
[null,"Dagbesteding regulier: outputgericht (licht)","07A05"]
[null,"Dagbesteding regulier: outputgericht (middel)","07A06"]
[null,"Dagbesteding regulier: outputgericht (zwaar)","07A07"]
[null,"Dagbesteding specialistisch: outputgericht (licht)","07A08"]
[null,"Dagbesteding specialistisch: outputgericht (middel)","07A09"]
[null,"Dagbesteding specialistisch: outputgericht (zwaar)","07A10"]
[null,"Dagbesteding regulier: inspanningsgericht (licht)","07A11"]
[null,"Dagbesteding regulier: inspanningsgericht (middel)","07A12"]
[null,"Dagbesteding regulier: inspanningsgericht (zwaar)","07A13"]
[null,"Dagbesteding specialistisch: inspanningsgericht (licht)","07A14"]
[null,"Dagbesteding specialistisch: inspanningsgericht (middel)","07A15"]
[null,"Dagbesteding specialistisch: inspanningsgericht (zwaar)","07A16"]
[null,"Vroegdoven: Dagactiviteit zintuiglijk gehandicapten (landelijke inkoop ZG)","07L01"]
[null,"Doofblinden: Dagactiviteit zintuiglijk gehandicapten (landelijke inkoop ZG)","07L02"]
[null,"Dagopvang bij beperking in de ontwikkeling",7001]
[null,"Dagopvang bij fysieke beperkingen",7002]
[null,"Dagopvang bij psychosociale beperkingen",7003]
[null,"Dagactiviteit zintuiglijk gehandicapten",7004]
[8,"Vervoerdiensten"]
[null,"Vervoer: outputgericht","08A01"]
[null,"Vervoer rolstoel: outputgericht","08A02"]
[null,"Vervoer regulier: inspanningsgericht","08A03"]
[null,"Vervoer rolstoel: inspanningsgericht","08A04"]
[null,"Vervoer: outputgericht (licht)","08A05"]
[null,"Vervoer: outputgericht (middel)","08A06"]
[null,"Vervoer: outputgericht (zwaar)","08A07"]
[null,"Vervoer rolstoel: outputgericht (licht)","08A08"]
[null,"Vervoer rolstoel: outputgericht (middel)","08A09"]
[null,"Vervoer rolstoel: outputgericht (zwaar)","08A10"]
[null,"Collectieve vervoerdienst",8001]
[null,"Collectieve vervoerdienst rolstoel",8002]
[null,"Financiële tegemoetkoming vervoer",8003]
[null,"Individueel rolstoelvervoer",8004]
[null,"Individueel vervoer",8005]
[null,"Rijles scootmobiel",8006]
[null,"Vervoer naar dagopvang",8007]
[9,"Overige groepsgerichte ondersteuning"]
[10,"Overige maatwerk arrangementen"]
[null,"Overige maatwerkarrangementen","10A00"]
[null,"Maatwerkarrangement ggz intramuraal","10A01"]
[null,"Maatwerkarrangement ggz extramuraal","10A02"]
[null,"Maatwerkarrangement zintuigelijk gehandicapten","10A03"]
[null,"Maatwerkarrangement verstandelijk gehandicapten","10A04"]
[null,"Maatwerkarrangement gehandicapten","10A05"]
[null,"Maatwerkarrangement ouderen","10A06"]
[null,"Maatwerkarrangement ggz intramuraal (licht)","10A07"]
[null,"Maatwerkarrangement ggz intramuraal (middel)","10A08"]
[null,"Maatwerkarrangement ggz intramuraal (middelzwaar)","10A09"]
[null,"Maatwerkarrangement ggz intramuraal (zwaar)","10A10"]
[null,"Maatwerkarrangement ggz intramuraal (extra zwaar)","10A11"]
[null,"Maatwerkarrangement ggz extramuraal (licht)","10A12"]
[null,"Maatwerkarrangement ggz extramuraal (middel)","10A13"]
[null,"Maatwerkarrangement ggz extramuraal (middelzwaar)","10A14"]
[null,"Maatwerkarrangement ggz extramuraal (zwaar)","10A15"]
[null,"Maatwerkarrangement ggz extramuraal (extra zwaar)","10A16"]
[null,"Maatwerkarrangement zintuigelijk gehandicapten (licht)","10A17"]
[null,"Maatwerkarrangement zintuigelijk gehandicapten (middel)","10A18"]
[null,"Maatwerkarrangement zintuigelijk gehandicapten (middelzwaar)","10A19"]
[null,"Maatwerkarrangement zintuigelijk gehandicapten (zwaar)","10A20"]
[null,"Maatwerkarrangement zintuigelijk gehandicapten (extra zwaar)","10A21"]
[null,"Maatwerkarrangement verstandelijk gehandicapten (licht)","10A22"]
[null,"Maatwerkarrangement verstandelijk gehandicapten (middel)","10A23"]
[null,"Maatwerkarrangement verstandelijk gehandicapten (middelzwaar)","10A24"]
[null,"Maatwerkarrangement verstandelijk gehandicapten (zwaar)","10A25"]
[null,"Maatwerkarrangement verstandelijk gehandicapten (extra zwaar)","10A26"]
[null,"Maatwerkarrangement gehandicapten (licht)","10A27"]
[null,"Maatwerkarrangement gehandicapten (middel)","10A28"]
[null,"Maatwerkarrangement gehandicapten (middelzwaar)","10A29"]
[null,"Maatwerkarrangement gehandicapten (zwaar)","10A30"]
[null,"Maatwerkarrangement gehandicapten (extra zwaar)","10A31"]
[null,"Maatwerkarrangement ouderen (licht)","10A32"]
[null,"Maatwerkarrangement ouderen (middel)","10A33"]
[null,"Maatwerkarrangement ouderen (middelzwaar)","10A34"]
[null,"Maatwerkarrangement ouderen (zwaar)","10A35"]
[null,"Maatwerkarrangement ouderen (extra zwaar)","10A36"]
[null,"Zelfstandig leven 1 (licht)","10A37"]
[null,"Zelfstandig leven 1 (middel)","10A38"]
[null,"Zelfstandig leven 1 (zwaar)","10A39"]
[null,"Zelfstandig leven 2 (licht)","10A40"]
[null,"Zelfstandig leven 2 (middel)","10A41"]
[null,"Zelfstandig leven 2 (zwaar)","10A42"]
[null,"Zelfstandig leven 3 (licht)","10A43"]
[null,"Zelfstandig leven 3 (middel)","10A44"]
[null,"Zelfstandig leven 3 (zwaar)","10A45"]
[null,"Maatschappelijke deelname 1 (licht)","10A46"]
[null,"Maatschappelijke deelname 1 (middel)","10A47"]
[null,"Maatschappelijke deelname 1 (zwaar)","10A48"]
[null,"Maatschappelijke deelname 2 (licht)","10A49"]
[null,"Maatschappelijke deelname 2 (middel)","10A50"]
[null,"Maatschappelijke deelname 2 (zwaar)","10A51"]
[null,"Maatschappelijke deelname 3 (licht)","10A52"]
[null,"Maatschappelijke deelname 3 (middel)","10A53"]
[null,"Maatschappelijke deelname 3 (zwaar)","10A54"]
[null,"Zelfstandig leven 1 (middelzwaar): outputgericht","10A55"]
[null,"Zelfstandig leven 1 (extra zwaar): outputgericht","10A56"]
[null,"Zelfstandig leven 2 (middelzwaar): outputgericht","10A57"]
[null,"Zelfstandig leven 2 (extra zwaar): outputgericht","10A58"]
[null,"Zelfstandig leven 3 (licht): outputgericht","10A59"]
[null,"Zelfstandig leven 3 (extra zwaar): outputgericht","10A60"]
[null,"Maatschappelijke deelname 1 (middelzwaar): outputgericht","10A61"]
[null,"Maatschappelijke deelname 1 (extra zwaar): outputgericht","10A62"]
[null,"Maatschappelijke deelname 2 (middelzwaar): outputgericht","10A63"]
[null,"Maatschappelijke deelname 2 (extra zwaar): outputgericht","10A64"]
[null,"Maatschappelijke deelname 3 (middelzwaar): outputgericht","10A65"]
[null,"Maatschappelijke deelname 3 (extra zwaar): outputgericht","10A66"]
[11,"Rolstoelen"]
[null,"Accessoires rolstoel","11A01"]
[null,"Elektrische rolstoel","11A02"]
[null,"Handmatig bewogen rolstoel","11A03"]
[null,"Individuele aanpassing rolstoel","11A04"]
[null,"Onderhoud en reparatie","11A05"]
[null,"Sport rolstoel","11A06"]
[null,"Werkstoelen","11A07"]
[null,"Accessoires rolstoel",11001]
[null,"Elektrische rolstoel",11002]
[null,"Handmatig bewogen rolstoel",11003]
[null,"Individuele aanpassing rolstoel",11004]
[null,"Onderhoud en reparatie",11005]
[null,"Sport rolstoel",11006]
[null,"Werkstoelen",11007]
[12,"Vervoervoorzieningen"]
[null,"Aangepaste fietsen","12A01"]
[null,"Aanpassing vervoermiddel","12A02"]
[null,"Accessoires vervoersvoorziening","12A03"]
[null,"Ander verplaatsingsmiddel kinderen","12A04"]
[null,"Open elektrische buitenwagen (scootmobiel)","12A05"]
[null,"Gesloten buitenwagen","12A06"]
[null,"Ander verplaatsingsmiddel volwassenen","12A07"]
[null,"Bruikleenauto","12A08"]
[null,"Collectieve vervoervoorziening","12A09"]
[null,"Collectieve vervoervoorziening rolstoel","12A10"]
[null,"Driewielfietsen","12A11"]
[null,"Financiële tegemoetkoming vervoervoorziening","12A12"]
[null,"Onderhoud en reparatie","12A13"]
[null,"Verzekeringen","12A14"]
[null,"Aangepaste fietsen",12001]
[null,"Aanpassing vervoermiddel",12002]
[null,"Accessoires vervoersvoorziening",12003]
[null,"Ander verplaatsingsmiddel kinderen",12004]
[null,"Open elektrische buitenwagen (scootmobiel)",12005]
[null,"Gesloten buitenwagen",12006]
[null,"Ander verplaatsingsmiddel volwassenen",12007]
[null,"Bruikleenauto",12008]
[null,"Collectieve vervoervoorziening",12009]
[null,"Collectieve vervoervoorziening rolstoel",12010]
[null,"Driewielfietsen",12011]
[null,"Financiële tegemoetkoming vervoervoorziening",12012]
[null,"Onderhoud en reparatie",12013]
[null,"Verzekeringen",12014]
[13,"Woonvoorzieningen"]
[null,"Financiële tegemoetkoming woningaanpassing","13A01"]
[null,"Onroerende woonvoorziening","13A02"]
[null,"Roerende woonvoorziening","13A03"]
[null,"Traplift/tillift","13A04"]
[null,"Verwijderen woonvoorziening","13A05"]
[null,"Onderhoud en reparatie","13A06"]
[null,"Financiële tegemoetkoming woningaanpassing",13001]
[null,"Onroerende woonvoorziening",13002]
[null,"Roerende woonvoorziening",13003]
[null,"Traplift/tillift",13004]
[null,"Verwijderen woonvoorziening",13005]
[null,"Onderhoud en reparatie",13006]
[14,"Overige hulpmiddelen"]
[15,"Beschermd wonen"]
[null,"Beschermd wonen: outputgericht","15A01"]
[null,"Beschermd wonen: inspanningsgericht","15A02"]
[null,"Beschermd wonen: outputgericht (licht)","15A03"]
[null,"Beschermd wonen: outputgericht (middel)","15A04"]
[null,"Beschermd wonen: outputgericht (middelzwaar)","15A05"]
[null,"Beschermd wonen: outputgericht (zwaar)","15A06"]
[null,"Beschermd wonen: outputgericht (extra zwaar)","15A07"]
[null,"Beschermd wonen: inspanningsgericht (licht)","15A08"]
[null,"Beschermd wonen: inspanningsgericht (middel)","15A09"]
[null,"Beschermd wonen: inspanningsgericht (middelzwaar)","15A10"]
[null,"Beschermd wonen: inspanningsgericht (zwaar)","15A11"]
[null,"Beschermd wonen: inspanningsgericht (extra zwaar)","15A12"]
[null,"Per dag VPT 1GGZ-C excl.BH excl.DB","15A13"]
[null,"Per dag VPT 1GGZ-C excl.BH incl.DB","15A14"]
[null,"Per dag VPT 2GGZ-C excl.BH excl.DB","15A15"]
[null,"Per dag VPT 2GGZ-C excl.BH incl.DB","15A16"]
[null,"Per dag VPT 3GGZ-C excl.BH excl.DB","15A17"]
[null,"Per dag VPT 3GGZ-C excl.BH incl.DB","15A18"]
[null,"Per dag VPT 4GGZ-C excl.BH excl.DB","15A19"]
[null,"Per dag VPT 4GGZ-C excl.BH incl.DB","15A20"]
[null,"Per dag VPT 5GGZ-C excl.BH excl.DB","15A21"]
[null,"Per dag VPT 5GGZ-C excl.BH incl.DB","15A22"]
[null,"Per dag VPT 6GGZ-C excl.BH excl.DB","15A23"]
[null,"Per dag VPT 6GGZ-C excl.BH incl.DB","15A24"]
[null,"Per dag ZZP 1GGZ-C excl.BH excl.DB","15A25"]
[null,"Per dag ZZP 1GGZ-C excl.BH incl.DB","15A26"]
[null,"Per dag ZZP 2GGZ-C excl.BH excl.DB","15A29"]
[null,"Per dag ZZP 2GGZ-C excl.BH incl.DB","15A30"]
[null,"Per dag ZZP 3GGZ-C excl.BH excl.DB","15A33"]
[null,"Per dag ZZP 3GGZ-C excl.BH incl.DB","15A34"]
[null,"Per dag ZZP 4GGZ-C excl.BH excl.DB","15A37"]
[null,"Per dag ZZP 4GGZ-C excl.BH incl.DB","15A38"]
[null,"Per dag ZZP 5GGZ-C excl.BH excl.DB","15A41"]
[null,"Per dag ZZP 5GGZ-C excl.BH incl.DB","15A42"]
[null,"Per dag ZZP 6GGZ-C excl.BH excl.DB","15A45"]
[null,"Per dag ZZP 6GGZ-C excl.BH incl.DB","15A46"]
[null,"Beschermd wonen afwezigheidsdag: inspanningsgericht","15A49"]
[16,"Opvang"]
[null,"Opvang: outputgericht","16A01"]
[null,"Opvang: inspanningsgericht","16A02"]
[null,"Opvang: outputgericht (licht)","16A03"]
[null,"Opvang: outputgericht (middel)","16A04"]
[null,"Opvang: outputgericht (zwaar)","16A05"]
[null,"Dak- en thuislozen opvang",16001]
[null,"Vrouwenopvang",16002]
[17,"Spoedopvang"]
[null,"Spoedopvang: outputgericht","17A00"]
[null,"Spoedopvang: inspanningsgericht","17A01"]
[null,"Crisisopvang",17001]

{"sheet":"Import Productcodes","index":10,"n_rows":346,"n_cols":4,"rows_kept":346,"cut":false,"hidden":false,"merged":[]}
["IMPORTPAGINA VOOR PRODUCTCODES PER GEMEENTE INCL. TARIEVEN"]
["betekenis (optioneel)","code","prijs","gemeente"]
["Hulp bij het huishouden: outputgericht","01A00"]
["HH 1: outputgericht","01A01"]
["HH 2: outputgericht","01A02"]
["HH 3: outputgericht","01A03"]
["HH 1: inspanningsgericht","01A04"]
["HH 2: inspanningsgericht","01A05"]
["HH 3: inspanningsgericht","01A06"]
["HH 1: outputgericht (licht)","01A07"]
["HH 1: outputgericht (middel)","01A08"]
["HH 1: outputgericht (middelzwaar)","01A09"]
["HH 1: outputgericht (zwaar)","01A10"]
["HH 1: outputgericht (extra zwaar)","01A11"]
["HH 2: outputgericht (licht)","01A12"]
["HH 2: outputgericht (middel)","01A13"]
["HH 2: outputgericht (middelzwaar)","01A14"]
["HH 2: outputgericht (zwaar)","01A15"]
["HH 2: outputgericht (extra zwaar)","01A16"]
["HH 3: outputgericht (licht)","01A17"]
["HH 3: outputgericht (middel)","01A18"]
["HH 3: outputgericht (middelzwaar)","01A19"]
["HH 3: outputgericht (zwaar)","01A20"]
["HH 3: outputgericht (extra zwaar)","01A21"]
["HH1 (huishoudelijke werkzaamheden)",1001]
["HH2 (organisatie van het huishouden)",1002]
["Begeleiding regulier: outputgericht","02A01"]
["Begeleiding specialistisch: outputgericht","02A02"]
["Begeleiding regulier: inspanningsgericht","02A03"]
["Begeleiding mantelzorg: inspanningsgericht","02A04"]
["Begeleiding specialistisch: inspanningsgericht","02A05"]
["Begeleiding regulier: outputgericht (licht)","02A06"]
["Begeleiding regulier: outputgericht (middel)","02A07"]
["Begeleiding regulier: outputgericht (middelzwaar)","02A08"]
["Begeleiding regulier: outputgericht (zwaar)","02A09"]
["Begeleiding regulier: outputgericht (extra zwaar)","02A10"]
["Begeleiding specialistisch: outputgericht (licht)","02A11"]
["Begeleiding specialistisch: outputgericht (middel)","02A12"]
["Begeleiding specialistisch: outputgericht (middelzwaar)","02A13"]
["Begeleiding specialistisch: outputgericht (zwaar)","02A14"]
["Begeleiding specialistisch: outputgericht (extra zwaar)","02A15"]
["Begeleiding regulier: inspanningsgericht (individueel)","02A16"]
["Begeleiding regulier: inspanningsgericht (groep)","02A17"]
["Begeleiding regulier: inspanningsgericht (op afstand)","02A18"]
["Begeleiding specialistisch: inspanningsgericht (individueel)","02A19"]
["Begeleiding specialistisch: inspanningsgericht (groep)","02A20"]
["Begeleiding specialistisch: inspanningsgericht (op afstand)","02A21"]
["Begeleiding laag tarief: inspanningsgericht","02A22"]
["Begeleiding GGZ: outputgericht (licht)","02A23"]
["Begeleiding GGZ: outputgericht (middel)","02A24"]
["Begeleiding GGZ: outputgericht (zwaar)","02A25"]
["Begeleiding GHZ: outputgericht (licht)","02A26"]
["Begeleiding GHZ: outputgericht (middel)","02A27"]
["Begeleiding GHZ: outputgericht (zwaar)","02A28"]
["Begeleiding VV&T: outputgericht (licht)","02A29"]
["Begeleiding VV&T: outputgericht (middel)","02A30"]
["Begeleiding VV&T: outputgericht (zwaar)","02A31"]
["Mantelzorg GGZ: outputgericht (licht)","02A32"]
["Mantelzorg GGZ: outputgericht (middel)","02A33"]
["Mantelzorg GGZ: outputgericht (zwaar)","02A34"]
["Mantelzorg GHZ: outputgericht (licht)","02A35"]
["Mantelzorg GHZ: outputgericht (middel)","02A36"]
["Mantelzorg GHZ: outputgericht (zwaar)","02A37"]
["Mantelzorg VV&T: outputgericht (licht)","02A38"]
["Mantelzorg VV&T: outputgericht (middel)","02A39"]
["Mantelzorg VV&T: outputgericht (zwaar)","02A40"]
["Vroegdoven: Toeleiding (landelijke inkoop ZG)","02L01"]
["Vroegdoven: Verlengde toeleiding (landelijke inkoop ZG)","02L02"]
["Vroegdoven: Consultatie (landelijke inkoop ZG)","02L03"]
["Vroegdoven: Dovenmaatschappelijkwerk(landelijke inkoop ZG)","02L04"]
["Vroegdoven: Gespecialiseerde begeleiding (landelijke inkoop ZG)","02L05"]
["Vroegdoven: Revaliderende begeleiding (landelijke inkoop ZG)","02L06"]
["Doofblinden: Toeleiding (landelijke inkoop ZG)","02L08"]
["Doofblinden: Verlengde toeleiding (landelijke inkoop ZG)","02L09"]
["Doofblinden: Consultatie (landelijke inkoop ZG)","02L10"]
["Doofblinden: Dovenmaatschappelijkwerk (landelijke inkoop ZG)","02L11"]
["Doofblinden: Gespecialiseerde begeleiding (landelijke inkoop ZG)","02L12"]
["Doofblinden: Begeleidersvoorziening (landelijke inkoop ZG)","02L13"]
["Visueel: gespecialiseerde begeleiding (landelijke inkoop ZG)","02L15"]
["Aanbrengen van structuur c.q. voeren van regie",2001]
["Begeleiding bij beperkingen in de ontwikkeling",2002]
["Begeleiding bij fysieke beperkingen",2003]
["Begeleiding bij psychosociale beperkingen",2004]
["Begeleiding bij vervoer",2005]
["Begeleiding bij/naar het zelfstandig wonen",2006]
["Oefenen (onder begeleiding) ",2007]
["Ondersteuning bij praktische handelingen/vaardigheden",2008]
["Sociale relaties en maatschappelijk leven",2009]
["Toezicht",2010]
["Toeleiding ZG",2011]
["Verlengde toeleiding ZG",2012]
["Consultatie ZG",2013]
["Beantwoording korte begeleidingsvragen ZG",2014]
["Gespecialiseerde begeleiding ZG",2015]
["Revaliderende begeleiding ZG",2016]
["Begeleidersvoorziening doofblinden",2017]
["Doventolk",2018]
["Persoonlijke verzorging specialistisch: outputgericht","03A01"]
["Persoonlijke verzorging regulier: outputgericht","03A02"]
["Persoonlijke verzorging regulier: inspanningsgericht","03A03"]
["Persoonlijke verzorging specialistisch: inspanningsgericht","03A04"]
["Persoonlijke verzorging regulier: outputgericht (licht)","03A05"]
["Persoonlijke verzorging regulier: outputgericht (middel)","03A06"]
["Persoonlijke verzorging regulier: outputgericht (zwaar)","03A07"]
["Persoonlijke verzorging specialistisch: outputgericht (licht)","03A08"]
["Persoonlijke verzorging specialistisch: outputgericht (middel)","03A09"]
["Persoonlijke verzorging specialistisch: outputgericht (zwaar)","03A10"]
["Persoonlijke verzorging regulier: inspanningsgericht (individueel)","03A11"]
["Persoonlijke verzorging regulier: inspanningsgericht (op afstand)","03A12"]
["Persoonlijke verzorging specialistisch: inspanningsgericht (individueel)","03A13"]
["Persoonlijke verzorging specialistisch: inspanningsgericht (op afstand)","03A14"]
["Persoonlijke verzorging laag tarief: inspanningsgericht","03A15"]
["Kortdurend verblijf: outputgericht","04A00"]
["Kortdurend verblijf: inspanningsgericht","04A01"]
["Kortdurend verblijf regulier: inspanningsgericht","04A02"]
["Kortdurend verblijf deeltijdzorg: inspanningsgericht","04A03"]
["Kortdurend verblijf: logeer/respijtzorg","04A04"]
["Kortdurend verblijf: inspanningsgericht (licht)","04A05"]
["Kortdurend verblijf: inspanningsgericht (middel)","04A06"]
["Kortdurend verblijf: inspanningsgericht (middelzwaar)","04A07"]
["Kortdurend verblijf: inspanningsgericht (zwaar)","04A08"]
["Kortdurend verblijf: inspanningsgericht (extra zwaar)","04A09"]
["Kortdurend verblijf specialistisch: inspanningsgericht","04A10"]
["Deeltijdverblijf",4001]
["Logeeropvang",4002]
["Huurderving","05A01"]
["Keuring woonvoorziening","05A02"]
["Tijdelijke huisvesting","05A03"]
["Verhuizing en inrichting","05A04"]
["Vrijmaken woning","05A05"]
["Boodschappendienst","05A06"]
["Maaltijdvoorziening","05A07"]
["Huurderving",5001]
["Keuring woonvoorziening",5002]
["Tijdelijke huisvesting",5003]
["Verhuizing en inrichting",5004]
["Vrijmaken woning",5005]
["Boodschappendienst",6001]
["Maaltijdvoorziening",6002]
["Dagbesteding regulier: outputgericht","07A01"]
["Dagbesteding specialistisch: outputgericht","07A02"]
["Dagbesteding regulier: inspanningsgericht","07A03"]
["Dagbesteding specialistisch: inspanningsgericht","07A04"]
["Dagbesteding regulier: outputgericht (licht)","07A05"]
["Dagbesteding regulier: outputgericht (middel)","07A06"]
["Dagbesteding regulier: outputgericht (zwaar)","07A07"]
["Dagbesteding specialistisch: outputgericht (licht)","07A08"]
["Dagbesteding specialistisch: outputgericht (middel)","07A09"]
["Dagbesteding specialistisch: outputgericht (zwaar)","07A10"]
["Dagbesteding regulier: inspanningsgericht (licht)","07A11"]
["Dagbesteding regulier: inspanningsgericht (middel)","07A12"]
["Dagbesteding regulier: inspanningsgericht (zwaar)","07A13"]
["Dagbesteding specialistisch: inspanningsgericht (licht)","07A14"]
["Dagbesteding specialistisch: inspanningsgericht (middel)","07A15"]
["Dagbesteding specialistisch: inspanningsgericht (zwaar)","07A16"]
["Vroegdoven: Dagactiviteit zintuiglijk gehandicapten (landelijke inkoop ZG)","07L01"]
["Doofblinden: Dagactiviteit zintuiglijk gehandicapten (landelijke inkoop ZG)","07L02"]
["Dagopvang bij beperking in de ontwikkeling",7001]
["Dagopvang bij fysieke beperkingen",7002]
["Dagopvang bij psychosociale beperkingen",7003]
["Dagactiviteit zintuiglijk gehandicapten",7004]
["Vervoer: outputgericht","08A01"]
["Vervoer rolstoel: outputgericht","08A02"]
["Vervoer regulier: inspanningsgericht","08A03"]
["Vervoer rolstoel: inspanningsgericht","08A04"]
["Vervoer: outputgericht (licht)","08A05"]
["Vervoer: outputgericht (middel)","08A06"]
["Vervoer: outputgericht (zwaar)","08A07"]
["Vervoer rolstoel: outputgericht (licht)","08A08"]
["Vervoer rolstoel: outputgericht (middel)","08A09"]
["Vervoer rolstoel: outputgericht (zwaar)","08A10"]
["Collectieve vervoerdienst",8001]
["Collectieve vervoerdienst rolstoel",8002]
["Financiële tegemoetkoming vervoer",8003]
["Individueel rolstoelvervoer",8004]
["Individueel vervoer",8005]
["Rijles scootmobiel",8006]
["Vervoer naar dagopvang",8007]
["Overige maatwerkarrangementen","10A00"]
["Maatwerkarrangement ggz intramuraal","10A01"]
["Maatwerkarrangement ggz extramuraal","10A02"]
["Maatwerkarrangement zintuigelijk gehandicapten","10A03"]
["Maatwerkarrangement verstandelijk gehandicapten","10A04"]
["Maatwerkarrangement gehandicapten","10A05"]
["Maatwerkarrangement ouderen","10A06"]
["Maatwerkarrangement ggz intramuraal (licht)","10A07"]
["Maatwerkarrangement ggz intramuraal (middel)","10A08"]
["Maatwerkarrangement ggz intramuraal (middelzwaar)","10A09"]
["Maatwerkarrangement ggz intramuraal (zwaar)","10A10"]
["Maatwerkarrangement ggz intramuraal (extra zwaar)","10A11"]
["Maatwerkarrangement ggz extramuraal (licht)","10A12"]
["Maatwerkarrangement ggz extramuraal (middel)","10A13"]
["Maatwerkarrangement ggz extramuraal (middelzwaar)","10A14"]
["Maatwerkarrangement ggz extramuraal (zwaar)","10A15"]
["Maatwerkarrangement ggz extramuraal (extra zwaar)","10A16"]
["Maatwerkarrangement zintuigelijk gehandicapten (licht)","10A17"]
["Maatwerkarrangement zintuigelijk gehandicapten (middel)","10A18"]
["Maatwerkarrangement zintuigelijk gehandicapten (middelzwaar)","10A19"]
["Maatwerkarrangement zintuigelijk gehandicapten (zwaar)","10A20"]
["Maatwerkarrangement zintuigelijk gehandicapten (extra zwaar)","10A21"]
["Maatwerkarrangement verstandelijk gehandicapten (licht)","10A22"]
["Maatwerkarrangement verstandelijk gehandicapten (middel)","10A23"]
["Maatwerkarrangement verstandelijk gehandicapten (middelzwaar)","10A24"]
["Maatwerkarrangement verstandelijk gehandicapten (zwaar)","10A25"]
["Maatwerkarrangement verstandelijk gehandicapten (extra zwaar)","10A26"]
["Maatwerkarrangement gehandicapten (licht)","10A27"]
["Maatwerkarrangement gehandicapten (middel)","10A28"]
["Maatwerkarrangement gehandicapten (middelzwaar)","10A29"]
["Maatwerkarrangement gehandicapten (zwaar)","10A30"]
["Maatwerkarrangement gehandicapten (extra zwaar)","10A31"]
["Maatwerkarrangement ouderen (licht)","10A32"]
["Maatwerkarrangement ouderen (middel)","10A33"]
["Maatwerkarrangement ouderen (middelzwaar)","10A34"]
["Maatwerkarrangement ouderen (zwaar)","10A35"]
["Maatwerkarrangement ouderen (extra zwaar)","10A36"]
["Zelfstandig leven 1 (licht)","10A37"]
["Zelfstandig leven 1 (middel)","10A38"]
["Zelfstandig leven 1 (zwaar)","10A39"]
["Zelfstandig leven 2 (licht)","10A40"]
["Zelfstandig leven 2 (middel)","10A41"]
["Zelfstandig leven 2 (zwaar)","10A42"]
["Zelfstandig leven 3 (licht)","10A43"]
["Zelfstandig leven 3 (middel)","10A44"]
["Zelfstandig leven 3 (zwaar)","10A45"]
["Maatschappelijke deelname 1 (licht)","10A46"]
["Maatschappelijke deelname 1 (middel)","10A47"]
["Maatschappelijke deelname 1 (zwaar)","10A48"]
["Maatschappelijke deelname 2 (licht)","10A49"]
["Maatschappelijke deelname 2 (middel)","10A50"]
["Maatschappelijke deelname 2 (zwaar)","10A51"]
["Maatschappelijke deelname 3 (licht)","10A52"]
["Maatschappelijke deelname 3 (middel)","10A53"]
["Maatschappelijke deelname 3 (zwaar)","10A54"]
["Zelfstandig leven 1 (middelzwaar): outputgericht","10A55"]
["Zelfstandig leven 1 (extra zwaar): outputgericht","10A56"]
["Zelfstandig leven 2 (middelzwaar): outputgericht","10A57"]
["Zelfstandig leven 2 (extra zwaar): outputgericht","10A58"]
["Zelfstandig leven 3 (licht): outputgericht","10A59"]
["Zelfstandig leven 3 (extra zwaar): outputgericht","10A60"]
["Maatschappelijke deelname 1 (middelzwaar): outputgericht","10A61"]
["Maatschappelijke deelname 1 (extra zwaar): outputgericht","10A62"]
["Maatschappelijke deelname 2 (middelzwaar): outputgericht","10A63"]
["Maatschappelijke deelname 2 (extra zwaar): outputgericht","10A64"]
["Maatschappelijke deelname 3 (middelzwaar): outputgericht","10A65"]
["Maatschappelijke deelname 3 (extra zwaar): outputgericht","10A66"]
["Accessoires rolstoel","11A01"]
["Elektrische rolstoel","11A02"]
["Handmatig bewogen rolstoel","11A03"]
["Individuele aanpassing rolstoel","11A04"]
["Onderhoud en reparatie","11A05"]
["Sport rolstoel","11A06"]
["Werkstoelen","11A07"]
["Accessoires rolstoel",11001]
["Elektrische rolstoel",11002]
["Handmatig bewogen rolstoel",11003]
["Individuele aanpassing rolstoel",11004]
["Onderhoud en reparatie",11005]
["Sport rolstoel",11006]
["Werkstoelen",11007]
["Aangepaste fietsen","12A01"]
["Aanpassing vervoermiddel","12A02"]
["Accessoires vervoersvoorziening","12A03"]
["Ander verplaatsingsmiddel kinderen","12A04"]
["Open elektrische buitenwagen (scootmobiel)","12A05"]
["Gesloten buitenwagen","12A06"]
["Ander verplaatsingsmiddel volwassenen","12A07"]
["Bruikleenauto","12A08"]
["Collectieve vervoervoorziening","12A09"]
["Collectieve vervoervoorziening rolstoel","12A10"]
["Driewielfietsen","12A11"]
["Financiële tegemoetkoming vervoervoorziening","12A12"]
["Onderhoud en reparatie","12A13"]
["Verzekeringen","12A14"]
["Aangepaste fietsen",12001]
["Aanpassing vervoermiddel",12002]
["Accessoires vervoersvoorziening",12003]
["Ander verplaatsingsmiddel kinderen",12004]
["Open elektrische buitenwagen (scootmobiel)",12005]
["Gesloten buitenwagen",12006]
["Ander verplaatsingsmiddel volwassenen",12007]
["Bruikleenauto",12008]
["Collectieve vervoervoorziening",12009]
["Collectieve vervoervoorziening rolstoel",12010]
["Driewielfietsen",12011]
["Financiële tegemoetkoming vervoervoorziening",12012]
["Onderhoud en reparatie",12013]
["Verzekeringen",12014]
["Financiële tegemoetkoming woningaanpassing","13A01"]
["Onroerende woonvoorziening","13A02"]
["Roerende woonvoorziening","13A03"]
["Traplift/tillift","13A04"]
["Verwijderen woonvoorziening","13A05"]
["Onderhoud en reparatie","13A06"]
["Financiële tegemoetkoming woningaanpassing",13001]
["Onroerende woonvoorziening",13002]
["Roerende woonvoorziening",13003]
["Traplift/tillift",13004]
["Verwijderen woonvoorziening",13005]
["Onderhoud en reparatie",13006]
["Beschermd wonen: outputgericht","15A01"]
["Beschermd wonen: inspanningsgericht","15A02"]
["Beschermd wonen: outputgericht (licht)","15A03"]
["Beschermd wonen: outputgericht (middel)","15A04"]
["Beschermd wonen: outputgericht (middelzwaar)","15A05"]
["Beschermd wonen: outputgericht (zwaar)","15A06"]
["Beschermd wonen: outputgericht (extra zwaar)","15A07"]
["Beschermd wonen: inspanningsgericht (licht)","15A08"]
["Beschermd wonen: inspanningsgericht (middel)","15A09"]
["Beschermd wonen: inspanningsgericht (middelzwaar)","15A10"]
["Beschermd wonen: inspanningsgericht (zwaar)","15A11"]
["Beschermd wonen: inspanningsgericht (extra zwaar)","15A12"]
["Per dag VPT 1GGZ-C excl.BH excl.DB","15A13"]
["Per dag VPT 1GGZ-C excl.BH incl.DB","15A14"]
["Per dag VPT 2GGZ-C excl.BH excl.DB","15A15"]
["Per dag VPT 2GGZ-C excl.BH incl.DB","15A16"]
["Per dag VPT 3GGZ-C excl.BH excl.DB","15A17"]
["Per dag VPT 3GGZ-C excl.BH incl.DB","15A18"]
["Per dag VPT 4GGZ-C excl.BH excl.DB","15A19"]
["Per dag VPT 4GGZ-C excl.BH incl.DB","15A20"]
["Per dag VPT 5GGZ-C excl.BH excl.DB","15A21"]
["Per dag VPT 5GGZ-C excl.BH incl.DB","15A22"]
["Per dag VPT 6GGZ-C excl.BH excl.DB","15A23"]
["Per dag VPT 6GGZ-C excl.BH incl.DB","15A24"]
["Per dag ZZP 1GGZ-C excl.BH excl.DB","15A25"]
["Per dag ZZP 1GGZ-C excl.BH incl.DB","15A26"]
["Per dag ZZP 2GGZ-C excl.BH excl.DB","15A29"]
["Per dag ZZP 2GGZ-C excl.BH incl.DB","15A30"]
["Per dag ZZP 3GGZ-C excl.BH excl.DB","15A33"]
["Per dag ZZP 3GGZ-C excl.BH incl.DB","15A34"]
["Per dag ZZP 4GGZ-C excl.BH excl.DB","15A37"]
["Per dag ZZP 4GGZ-C excl.BH incl.DB","15A38"]
["Per dag ZZP 5GGZ-C excl.BH excl.DB","15A41"]
["Per dag ZZP 5GGZ-C excl.BH incl.DB","15A42"]
["Per dag ZZP 6GGZ-C excl.BH excl.DB","15A45"]
["Per dag ZZP 6GGZ-C excl.BH incl.DB","15A46"]
["Beschermd wonen afwezigheidsdag: inspanningsgericht","15A49"]
["Opvang: outputgericht","16A01"]
["Opvang: inspanningsgericht","16A02"]
["Opvang: outputgericht (licht)","16A03"]
["Opvang: outputgericht (middel)","16A04"]
["Opvang: outputgericht (zwaar)","16A05"]
["Dak- en thuislozen opvang",16001]
["Vrouwenopvang",16002]
["Spoedopvang: outputgericht","17A00"]
["Spoedopvang: inspanningsgericht","17A01"]
["Crisisopvang",17001]